Workbook

Sheet Indice
B1: Sociedad: | C1: GRUPO VAZQUEZ S.A.E.
S2: 1 | T2: Enero
S3: 2 | T3: Febrero
S4: 3 | T4: Marzo
S5: 4 | T5: Abril
A6: Fecha Presentación: | B6: 2021-09-30 | S6: 5 | T6: Mayo
S7: 6 | T7: Junio
S8: 7 | T8: Julio
C9: INDICE | D9: REF. | S9: 8 | T9: Agosto
B10: Informacion General | S10: 9 | T10: Septiembre
C11: Descripción de la naturaleza y del negocio de la Sociedad | D11: Nota 1 | S11: 10 | T11: Octubre
C12: Resumen de las principales políticas contables | D12: Nota 2 | S12: 11 | T12: Noviembre
B13: Balance General | D13: BG | S13: 12 | T13: Diciembre
C14: Efectivo y equivalente de efectivo | D14: Nota 3
C15: Inversiones temporales | D15: Nota 4
C16: Cuentas por cobrar comerciales | D16: Nota 5
C17: Otros créditos | D17: Nota 6
C18: Cuentas por cobrar comerciales | D18: Nota 5
C19: Inventarios | D19: Nota 7
C20: Inversión en asociadas | D20: Nota 8
C21: Propiedades, planta y equipo | D21: Nota 9
C22: Activos en Fideicomiso | D22: Nota 10
C23: Activos intangibles | D23: Nota 11
C24: Goodwill | D24: Nota 12
C25: Cuentas por pagar comerciales | D25: Nota 13
C26: Préstamos a corto plazo | D26: Nota 14
C27: Porción corriente de la deuda a largo plazo | D27: Nota 15
C28: Remuneraciones y cargas sociales a pagar | D28: Nota 16
C29: Impuestos a pagar | D29: Nota 17
C30: Provisiones | D30: Nota 18
C31: Otros pasivos corrientes | D31: Nota 19
C32: Prestamos a largo plazo | D32: Nota 14
C33: Bonos Emitidos | D33: Nota 14
C34: Otros pasivos no corrientes | D34: Nota 19
C35: Capital integrado | D35: Nota 20
C36: Reserva de revalúo | D36: Nota 21
C37: Reserva legal | D37: Nota 21
C38: Reservas estatutarias | D38: Nota 21
C39: Reservas facultativas | D39: Nota 21
C40: Diferencia transitoria por conversión | D40: Nota 22
C41: Resultados acumulados | D41: Nota 23
C42: Resultados del Ejercicio | D42: Nota 23
C43: Interés minoritario | D43: Nota 24
B44: Estado de Resultados | D44: ER
C45: Ventas | D45: Nota 25
C46: Costo de ventas | D46: Nota 26
C47: Gastos de ventas | D47: Nota 27
C48: Gastos administrativos | D48: Nota 27
C49: Otros ingresos y gastos operativos | D49: Nota 28
C50: Ingresos financieros - neto | D50: Nota 29
C51: Gastos financieros - neto | D51: Nota 29
C52: Resultado de inversiones en asociadas | D52: Nota 30
C53: Resultado participación minoritaria | D53: Nota 31
C54: Impuesto a la renta | D54: Nota 32
C55: Resultado extraordinario neto de impuesto a la renta | D55: Nota 33
C56: Resultado sobre actividades discontinuadas neto de impuesto a la renta | D56: Nota 34
C57: Utilidad/(Pérdida) neta del año | D57: Nota 35
C58: Utilidad neta por acción ordinaria | D58: Nota 35
B59: Estado de Evolución del Patrimonio Neto | D59: EVPN
B60: Estado de Flujos de Efectivo | D60: EFE
B61: Otras Notas de los Estados Financieros
C62: Activos gravados | D62: Nota 36
C63: Contingencias y compromisos | D63: Nota 37
C64: Impuesto diferido | D64: Nota 38
C65: Hechos posteriores | D65: Nota 39
C66: Saldos y transacciones con partes relacionadas | D66: Nota 40

Sheet BG
D1: =Indice!C1 -> GRUPO VAZQUEZ S.A.E. | E1: Indice
A7: BALANCE GENERAL
A8: =IFERROR(IF(Indice!B6="","Al dia... de mes… de año 2XX2…","Al "&DAY(Indice!B6)&" de "&VLOOKUP(MONTH(Indice!B6),Indice!S:T,2,0)&" de "&YEAR(Indice!B6)),"Al dia... de mes… de año 2XX2…") -> Al 30 de Septiembre de 2021
A9: (En miles de guaraníes)
E11: Nota | F11: Setiembre 2021 | G11: Diciembre 2020
B12: ACTIVOS
B13: Activos Corrientes
C14: Efectivo y equivalente de efectivo | E14: 3 | F14: ='Nota 3'!C17 -> 7481256.831 | G14: ='Nota 3'!D17 -> 1551580.348
C15: Inversiones temporales | E15: 4 | F15: ='Nota 4'!B20 -> 52094268.36 | G15: ='Nota 4'!C20 -> 0
C16: Cuentas por cobrar comerciales | E16: 5 | F16: ='Nota 5'!C13 -> 35379554.4 | G16: ='Nota 5'!D13 -> 701718.656
C17: Otros créditos | E17: 6 | F17: ='Nota 6'!B22 -> 22348687.6 | G17: ='Nota 6'!C22 -> 11309980.01
C18: Inventarios | E18: 7 | F18: ='Nota 7'!B14 -> 20806011.79 | G18: ='Nota 7'!C14 -> 79028611.89
C19: Total activos corrientes | F19: =SUM(F14:F18) -> 138109779 | G19: =SUM(G14:G18) -> 92591890.91
B20: Activos no Corrientes
C21: Otros créditos | E21: 6 | F21: ='Nota 6'!F14 -> 7017555.555 | G21: ='Nota 6'!G14 -> 11900097.3
C22: Cuentas por cobrar comerciales | E22: 5 | F22: ='Nota 5'!C21 -> 0 | G22: ='Nota 5'!D21 -> 0
C23: Inversión en asociadas | E23: 8 | F23: ='Nota 8'!B11 -> 326676492.5 | G23: ='Nota 8'!C11 -> 154343509.4
C24: Otras Inversiones | E24: 8 | F24: ='Nota 8'!C40 -> 2372893.525 | G24: =+'Nota 8'!D40 -> 12157909.91
C25: Propiedades, planta y equipo/Bienes de uso, neto | E25: 9 | F25: ='Nota 9'!L20 -> 21264345.5 | G25: ='Nota 9'!M20 -> 43841676.71
C26: Activos en Fideicomiso | E26: 10 | F26: =+'Nota 10'!B13 -> 140196754.3 | G26: =+'Nota 10'!C13 -> 130934449.5
C27: Activos intangibles | E27: 11 | F27: ='Nota 11'!B14 -> 11473307.96 | G27: ='Nota 11'!C14 -> 8379262.043
C28: Goodwill | E28: 12 | F28: ='Nota 12'!B12 -> 0 | G28: ='Nota 12'!C12 -> 0
C29: Total activos no corrientes | F29: =SUM(F21:F28) -> 509001349.3 | G29: =SUM(G21:G28) -> 361556904.8
B30: Total Activos | F30: =+F19+F29 -> 647111128.3 | G30: =+G19+G29 -> 454148795.7
B32: PASIVOS Y PATRIMONIO NETO
B33: Pasivos corrientes | E33: -1 | F33: -1
C34: Cuentas por pagar comerciales | E34: 13 | F34: ='Nota 13'!D15 -> 22895230.14 | G34: ='Nota 13'!E15 -> 3605544.458
C35: Préstamos a corto plazo | E35: 14 | F35: ='Nota 14'!E25 -> 8465479.757 | G35: ='Nota 14'!K25 -> 8543931.394
C36: Porción corriente de la deuda a largo plazo | E36: 15 | F36: ='Nota 15'!B18 -> 2508505.74 | G36: ='Nota 15'!C18 -> 6751955.833
C37: Remuneraciones y cargas sociales a pagar | E37: 16 | F37: ='Nota 16'!B11 -> 1133607.791 | G37: ='Nota 16'!C11 -> 83955.07
C38: Impuestos a pagar | E38: 17 | F38: ='Nota 17'!B11 -> 2176755.35 | G38: ='Nota 17'!C11 -> 2143367.885
C39: Provisiones | E39: 18 | F39: ='Nota 18'!B13 -> 0 | G39: ='Nota 18'!C13 -> 0
C40: Otros pasivos corrientes | E40: 19 | F40: ='Nota 19'!B15 -> 13305839.51 | G40: ='Nota 19'!C15 -> 1048703.532
C41: Total Pasivos Corrientes | F41: =+F34+F35+F36+F37+F38+F39+F40 -> 50485418.29 | G41: =+G34+G35+G36+G37+G38+G39+G40 -> 22177458.17
B42: Pasivos no corrientes
C43: Cuentas por pagar comerciales largo plazo | E43: 13 | F43: =+'Nota 13'!D22 -> 31823350.54 | G43: =+'Nota 13'!E22 -> 25292366.38
C44: Préstamos a largo plazo | E44: 14 | F44: ='Nota 14'!E43 -> 90020532.55 | G44: ='Nota 14'!K43 -> 116930621.6
C45: Bonos Emitidos | E45: 14 | F45: =+'Nota 14'!E56 -> 153815182.1 | G45: =+'Nota 14'!K56 -> 0
C46: Otros pasivos no corrientes | E46: 19 | F46: ='Nota 19'!F11 -> 43419391.83 | G46: ='Nota 19'!G11 -> 36618771.24
C47: Total pasivos no corrientes | F47: =SUM(F43:F46) -> 319078457 | G47: =SUM(G43:G46) -> 178841759.2
B49: Total Pasivos | F49: =+F41+F47 -> 369563875.3 | G49: =+G41+G47 -> 201019217.4
B51: Patrimonio Neto
C52: Capital integrado | E52: 20 | F52: ='Nota 20'!B14 -> 247000000 | G52: ='Nota 20'!C14 -> 240000000
C53: Aportes a capitalizar | E53: 20 | F53: ='Nota 20'!B15 -> 54448.339 | G53: ='Nota 20'!C15 -> 54448.339
C54: Reserva de revalúo | E54: 21 | F54: =' Nota 21'!B8 -> 0 | G54: =' Nota 21'!C8 -> 0
C55: Reserva legal | E55: 21 | F55: =' Nota 21'!B12 -> 568139.857 | G55: =' Nota 21'!C12 -> 0
C56: Reservas estatutarias | E56: 21 | F56: =' Nota 21'!B17 -> 0 | G56: =' Nota 21'!C17 -> 0
C57: Reservas facultatitvas | E57: 21 | F57: =' Nota 21'!B21 -> 12506990.12 | G57: =' Nota 21'!C21 -> 1712332.836
C58: Diferencia transitoria por conversión | E58: 22 | F58: ='Nota 22'!B9 -> 0 | G58: ='Nota 22'!C9 -> 0
C59: Resultados acumulados | E59: 23 | F59: ='Nota 23'!B8 -> 0 | G59: ='Nota 23'!C8 -> 0
C60: Resultado del Ejercicio | E60: 23 | F60: ='Nota 23'!B9 -> 17417674.71 | G60: ='Nota 23'!C9 -> 11362797.14
C61: Subtotal | F61: =SUM(F52:F60) -> 277547253 | G61: =SUM(G52:G60) -> 253129578.3
C62: Interés minoritario | E62: 24 | F62: ='Nota 24'!B8 -> 0 | G62: ='Nota 24'!C8 -> 0
B63: Total Patrimonio Neto | F63: =F61 -> 277547253 | G63: =G61 -> 253129578.3
B65: Total Pasivos y Patrimonio Neto | F65: =+F49+F63 -> 647111128.3 | G65: =+G49+G63 -> 454148795.7
B67: Las notas que se acompañan forman parte integrante de estos estados.

Sheet ER
A1: =Indice!C1 -> GRUPO VAZQUEZ S.A.E. | B1: Indice | D1: =ER!A4 -> 
A7: ESTADO DE RESULTADOS
A8: =IFERROR(IF(Indice!B6="","Al dia... de mes… de año 2XX2…","Al "&DAY(Indice!B6)&" de "&VLOOKUP(MONTH(Indice!B6),Indice!S:T,2,0)&" de "&YEAR(Indice!B6)),"Al dia... de mes… de año 2XX2…") -> Al 30 de Septiembre de 2021
A9: Comparativo con igual período del año anterior
A10: (En miles de guaraníes)
B12: Nota | C12: Setiembre 2021 | D12: Setiembre 2020
A13: Ventas | B13: 25 | C13: ='Nota 25'!B18 -> 171310641.5 | D13: ='Nota 25'!C18 -> 128977185.7
A14: Costo de ventas | B14: 26 | C14: ='Nota 26'!B15 -> -128232610.2 | D14: ='Nota 26'!C15 -> -95481524.49
A15: Utilidad bruta | C15: =C13+C14 -> 43078031.34 | D15: =D13+D14 -> 33495661.17
A16: Gastos de ventas | B16: 27 | C16: ='Nota 27'!B46 -> -339990.068 | D16: ='Nota 27'!E46 -> -181548.299
A17: Gastos administrativos | B17: 27 | C17: ='Nota 27'!C46 -> -8739801.645 | D17: ='Nota 27'!F46 -> -10682510.15
A18: Otros ingresos y gastos operativos | B18: 28 | C18: =+'Nota 28'!B11+'Nota 28'!F20 -> -930806.742 | D18: =+'Nota 28'!C11+'Nota 28'!G20 -> 806362.696
A19: Resultado operativo | C19: =SUM(C15:C18) -> 33067432.89 | D19: =SUM(D15:D18) -> 23437965.42
A20: Gastos Financieros | B20: 29 | C20: =-'Nota 29'!B12 -> -12611750.31 | D20: =-'Nota 29'!C12 -> -14380694.36
A21: Conversion Moneda Extranjera | B21: 29 | C21: =-'Nota 29'!F10 -> -1102710.672 | D21: =-'Nota 29'!G10 -> -1937345.967
A22: Subtotal | C22: =SUM(C20:C21) -> -13714460.98 | D22: =SUM(D20:D21) -> -16318040.32
A23: Resultado de inversiones en asociadas | B23: 30 | C23: ='Nota 30'!B13 -> 0 | D23: ='Nota 30'!C13 -> 0
A24: Resultados ordinarios antes de impuesto a la renta y participación minoritaria | C24: =C22+C23+C19 -> 19352971.9 | D24: =D22+D23+D19 -> 7119925.093
A25: Resultado participación minoritaria | B25: 31 | C25: ='Nota 31'!B12 -> 0 | D25: ='Nota 31'!C12 -> 0
A26: Resultado ordinario antes del impuesto a la renta | C26: =+C24+C25 -> 19352971.9 | D26: =+D24+D25 -> 7119925.093
A27: Impuesto a la renta | B27: 32 | C27: ='Nota 32'!B10 -> -1935297.19 | D27: ='Nota 32'!C10 -> 0
A28: Resultado neto de actividades ordinarias | C28: =C26+C27 -> 17417674.71 | D28: =D26+D27 -> 7119925.093
A29: Resultado extraordinario neto de impuesto a la renta | B29: 33 | C29: 0 | D29: 0
A30: Resultado sobre actividades discontinuadas neto de impuesto a la renta | B30: 34 | C30: ='Nota 34'!B12 -> 0 | D30: ='Nota 34'!C12 -> 0
A31: Utilidad/(Pérdida) neta del año | C31: =C28+C29+C30 -> 17417674.71 | D31: =D28+D29+D30 -> 7119925.093
A32: Utilidad neta por acción ordinaria | B32: 35 | C32: =+'Nota 35'!B11 -> 7051.690167 | D32: =+'Nota 35'!C11 -> 3151.803937
A35: Las notas que se acompañan forman parte integrante de estos estados.

Sheet EVPN
A1: =Indice!C1 -> GRUPO VAZQUEZ S.A.E. | I1: Indice
G7: ESTADO DE EVOLUCIÓN DEL PATRIMONIO NETO
I8: =IFERROR(IF(Indice!B6="","Al dia... de mes… de año 2XX2…","Al "&DAY(Indice!B6)&" de "&VLOOKUP(MONTH(Indice!B6),Indice!S:T,2,0)&" de "&YEAR(Indice!B6)),"Al dia... de mes… de año 2XX2…") -> Al 30 de Septiembre de 2021
A9: Comparativo con igual periodo del año anterior
A10: (En miles de guaraníes)
C13: Aporte de los propietarios | I13: Reserva de revalúo | K13: Reserva de revalúo técnico | M13: Ganancias reservadas | U13: Interes Minoritario | W13: Total
C14: Capital suscripto e integrado | E14: Aportes No Capitalizados | G14: Primas de emisión | M14: Reserva legal | O14: Reserva facultativa | Q14: Resultados acumulados | S14: Resultados del Ejercicio
Q15: Total | S15: Total
A17: Saldo al 31 de Diciembre de 2019 | C17: 189800000 | E17: 0 | G17: 0 | H17: 0 | I17: 7473689.44 | K17: 0 | M17: 353796.664 | O17: 12871299.12 | Q17: 3742114.22 | S17: 2410151.744 | U17: 0 | W17: 216651051.2
A18: Cambio en política contable (Nota….) | W18: =SUM(C18:V18) -> 0
A19: Saldo reestructurado | C19: =+C17+C18 -> 189800000 | E19: =+E17+E18 -> 0 | G19: =+G17+G18 -> 0 | I19: =+I17+I18 -> 7473689.44 | K19: =+K17+K18 -> 0 | M19: =+M17+M18 -> 353796.664 | O19: =+O17+O18 -> 12871299.12 | Q19: =+Q17+Q18 -> 3742114.22 | S19: =+S17+S18 -> 2410151.744 | U19: =+U17+U18 -> 0 | W19: 216651051.2
A20: Transferencia a Resultado Acumulado s/Acta de Asamblea Ordinaria | O20: =-S20 -> 2410151.744 | S20: =-S19 -> -2410151.744 | U20: 0 | W20: 0
A21: Integración del capital social | C21: 44900000 | E21: 107000 | U21: 0 | W21: 45007000
A22: Integración del capital por Fusion | C22: 10100000 | E22: 1098.529 | G22: 0 | I22: 6487983.597 | U22: 0 | W22: =SUM(C22:V22) -> 16589082.13
A23: Ajustes por Fusion | C23: -18900000 | E23: 84676.773 | G23: 0 | I23: 0 | K23: 0 | M23: -353796.664 | O23: -2410151.744 | Q23: -3742114.22 | S23: 0 | U23: 0 | W23: -25321385.86
A24: Reserva Legal | U24: 0 | W24: 0
A25: Reserva de Revalúo de activos fijos | U25: 0 | W25: 0
A26: Otras Reservas | O26: -4107379.569 | U26: 0 | W26: -4107379.569
A27: Revalúo técnico | U27: 0 | W27: 0
A28: Resultado del año | S28: =+ER!D31 -> 7119925.093 | U28: 0 | W28: 7119925.093
W29: 0
A30: =IFERROR(IF(Indice!B6="","Saldo al .. de de 20X1 ","Saldo al "&DAY(Indice!B6)&" de "&VLOOKUP(MONTH(Indice!B6),Indice!S:T,2,0)&" de "&YEAR(Indice!B6-365)),"Saldo al .. de de 20X1 ") -> Saldo al 30 de Septiembre de 2020 | B30: 365));"Saldo al .. de de 20X1 ") | C30: =SUM(C19:C29) -> 225900000 | E30: =SUM(E19:E29) -> 192775.302 | G30: =SUM(G19:G29) -> 0 | H30: =SUM(H16:H28) -> 0 | I30: =SUM(I19:I29) -> 13961673.04 | K30: =SUM(K19:K29) -> 0 | M30: =SUM(M19:M29) -> 0 | O30: =SUM(O19:O29) -> 8763919.554 | Q30: =SUM(Q19:Q29) -> 0 | S30: =SUM(S19:S29) -> 7119925.093 | U30: =SUM(U19:U29) -> 0 | W30: =SUM(W19:W29) -> 255938293
A32: Saldo al 31 de Diciembre de 2020 | C32: 240000000 | E32: 54448.339 | G32: 0 | I32: 0 | K32: 0 | M32: 0 | O32: 1712332.836 | Q32: 0 | S32: 11362797.14 | U32: 0 | W32: 253129578.3
A33: Transferencia a Reservas Especiales s/Acta de Asamblea General Ordinaria N° | C33: 0 | E33: 0 | G33: 0 | I33: 0 | K33: 0 | M33: =+-S33*5% -> 568139.8571 | O33: =-S33-M33 -> 10794657.28 | S33: -11362797.14 | U33: 0 | W33: 0
A34: Integración del capital social | E34: 7000000 | U34: 0 | W34: =SUM(C34:V34) -> 7000000
A35: Integración del capital por Fusion | U35: 0 | W35: =SUM(C35:V35) -> 0
A36: Capitalizacion de Reservas | U36: 0 | W36: 0
A37: Ajustes por Fusion | U37: 0 | W37: 0
A38: Transferencia a Capital | C38: 7000000 | E38: -7000000 | U38: 0 | W38: 0
A39: Revalúo de activos fijos | U39: 0 | W39: =SUM(C39:V39) -> 0
A40: Otras Reservas | U40: 0 | W40: =SUM(C40:V40) -> 0
A42: Resultado del año | C42: 0 | E42: 0 | G42: 0 | I42: 0 | K42: 0 | M42: 0 | O42: 0 | Q42: 0 | S42: 17417674.71 | U42: 0 | W42: =SUM(C42:V42) -> 17417674.71
W43: =SUM(C43:V43) -> 0
A44: =IFERROR(IF(Indice!B6="","Saldo al .. de de 20X2 ","Saldo al "&DAY(Indice!B6)&" de "&VLOOKUP(MONTH(Indice!B6),Indice!S:T,2,0)&" de "&YEAR(Indice!B6)),"Saldo al .. de de 20X2 ") -> Saldo al 30 de Septiembre de 2021 | C44: =C32+C33+C39+C41+C42+C34+C35+C36+C37+C38+C40 -> 247000000 | E44: =E32+E33+E39+E41+E42+E34+E35+E36+E37+E38+E40 -> 54448.339 | G44: =G32+G33+G39+G41+G42+G34+G35+G36+G37+G38+G40 -> 0 | I44: =I32+I33+I39+I41+I42+I34+I35+I36+I37+I38+I40 -> 0 | K44: =K32+K33+K39+K41+K42+K34+K35+K36+K37+K38+K40 -> 0 | M44: =M32+M33+M39+M41+M42+M34+M35+M36+M37+M38+M40 -> 568139.8571 | O44: =O32+O33+O39+O41+O42+O34+O35+O36+O37+O38+O40 -> 12506990.12 | Q44: =Q32+Q33+Q39+Q41+Q42+Q34+Q35+Q36+Q37+Q38+Q40 -> 0 | S44: =S32+S33+S39+S41+S42+S34+S35+S36+S37+S38+S40 -> 17417674.71 | U44: =U32+U33+U39+U41+U42+U34+U35+U36+U37+U38+U40 -> 0 | W44: =W32+W33+W39+W41+W42+W34+W35+W36+W37+W38+W40 -> 277547253

Sheet EFE
A1: =Indice!C1 -> GRUPO VAZQUEZ S.A.E. | C1: Indice
A7: ESTADO DE FLUJOS DE EFECTIVO
A8: =IFERROR(IF(Indice!B6="","Al dia... de mes… de año 2XX2…","Al "&DAY(Indice!B6)&" de "&VLOOKUP(MONTH(Indice!B6),Indice!S:T,2,0)&" de "&YEAR(Indice!B6)),"Al dia... de mes… de año 2XX2…") -> Al 30 de Septiembre de 2021
A9: Comparativo con igual periodo del año anterior
A10: (En miles de guaraníes)
B13: Setiembre 2021 | C13: Setiembre 2020
A15: FLUJO DE EFECTIVO DE ACTIVIDADES OPERATIVAS
A16: Cobranzas efectuadas a clientes | B16: 83237807.75 | C16: 49471521.31
A17: Pagos efectuados a proveedores y empleados | B17: -22420081.97 | C17: -47120344.09
A18: Efectivo generado por las operaciones | B18: 8071100.15 | C18: 26660203.31
A19: Pagos de impuesto a la renta | B19: -1985397.368 | C19: -1074749.72
A20: Flujo neto de efectivo de actividades operativas | B20: =SUM(B16:B19) -> 66903428.57 | C20: =SUM(C16:C19) -> 27936630.8
A22: FLUJO DE EFECTIVO DE ACTIVIDADES DE INVERSIÓN
A23: Adquisición de bienes Curtiembre - fideicomitida
A24: Ventas de activos fijos | C24: 0
A25: Variacion de bienes de uso | B25: 34534162.7 | C25: -21786398.09
A26: inversiones | B26: -197597765.5 | C26: -54210557.97
A27: Flujo neto de efectivo de actividades de inversión | B27: =SUM(B23:B26) -> -163063602.8 | C27: =SUM(C23:C26) -> -75996956.06
A29: FLUJO DE EFECTIVO DE ACTIVIDADES DE FINANCIACIÓN
A30: (Disminución) Incremento de préstamos | B30: -43242508.24 | C30: 34624496.27
A31: (Disminución) Incremento de Bonos | B31: 153815182.1 | C31: 0
A32: Aportes de capital recibidos | B32: 7000000 | C32: 30140509.34
A33: Intereses Pagados | B33: -14380112.47 | C33: -14380694.36
A34: Flujo neto de efectivo de actividades de financiamiento | B34: =SUM(B30:B33) -> 103192561.3 | C34: =SUM(C30:C33) -> 50384311.25
A36: (Disminución) Incremento neto de efectivo | B36: =+B20+B27+B34 -> 7032387.155 | C36: =+C20+C27+C34 -> 2323985.992
A37: Efecto estimado de la diferencia de cambio sobre el saldo de efectivo | B37: -1102710.672 | C37: -1937345.967
A38: Efectivo al principio del año | B38: 1551580.348 | C38: 426710.071
A40: Efectivo al final del periodo | B40: =+SUM(B36:B38) -> 7481256.831 | C40: =+SUM(C36:C38) -> 813350.096
A42: Las notas que se acompañan forman parte integrante de estos estados.

Sheet Nota1
A1: =Indice!C1 -> GRUPO VAZQUEZ S.A.E. | I1: BG
A6: NOTAS A LOS ESTADOS FINANCIEROS CORRESPONDIENTES AL PERIODO TERMINADO | H6: =IFERROR(IF(Indice!B6="","Al dia... de mes… de año 2XX2…","Al "&DAY(Indice!B6)&" de "&VLOOKUP(MONTH(Indice!B6),Indice!S:T,2,0)&" de "&YEAR(Indice!B6)),"Al dia... de mes… de año 2XX2…") -> Al 30 de Septiembre de 2021
A7: Presentadas en forma comparativa según lo establecido en la resolucion CNV CG N° 6/19 Titulo 31 Capitulo 3 Articulo 3°
A11: NOTA 1 – DESCRIPCIÓN DE LA NATURALEZA Y DEL NEGOCIO DE LA COMPAÑÍA
A12: Antecedentes de la sociedad: naturaleza jurídica, antecedentes sobre la constitución de la sociedad y reformas estatutarias, actividad principal y secundarias.
A13: La sociedad es una entidad comercial creada por Escritura Publica Nº 55 de fecha 21 de octubre de 2014 incripta en el Registro Publico de Personas Juridicas y Asociaciones bajo el numero 915, al folio 1.777 en fecha 29 de octubre de 2014 y en el Registro Publico de Comercio en el libro seccional respectivo bajo el numero 1541, serie C, al folio 18.598 y siguiente en fecha 29 de octubre de 2014.
A14: En fecha 27/03/2017 por escritura pública N° 30 los accionistas deciden aumentar el capital social a Gs. 300.000.000.000 (Guaraníes Trescientos Mil millones), representadas en 3.000 (tres mil) acciones nominativas no endozables de un valor nominal de Gs. 100.000.000 (Guaraníes Cien Millones) cada una numeradas del 1 al 3.000. En las Asambleas de Accionistas, las acciones numeradas del 1 al 2.000 tendrán derecho 5 (cinco) votos por Acción, y las numeradas del 2.001 al 3.000 tendrán derecho a 1 (Un) voto por Acción.-.
A15: En fecha 22/05/2020 por escritura pública N° 43 los accionistas deciden el cambio de denominacion y tipo social de "FMVV S.A.I.C.A.G." a "GRUPO VAZQUEZ S.A.E."
A16: En fecha 28/12/2020 por escritura pública N° 117 los accionistas deciden formalizar el Acuerdo Definitovo de Fusion por Absorcion quedando absorbida la Firma ELECTROLAR S.A., por la Firma GRUPO VAZQUEZ S.A.E.
A17: La sociedad tiene por objetivo principal cualquier actividad lícita que el Directorio creyere conveniente a los intereses de la sociedad, además de realizar con fondos propios las operaciones que más adelante se especifican, sea por cuenta propia o por asociada a terceros; en cualquier lugar de la República del Paraguay o del extranjero, sin que ello implique limitación a sus actividades; representación, distribución y mandatos de empresas y/o personas del país o del exterior; además podrá dedicarse a las actividades agrícolas, ganaderas y agropecuarias, así como a cualquier negocio relacionado o derivado de este tipo de actividades.-

Sheet Nota 2
A1: =Indice!C1 -> GRUPO VAZQUEZ S.A.E. | I1: BG
A6: NOTA 2 - RESUMEN DE LAS PRINCIPALES POLÍTICAS CONTABLES
A7: Resumen de las principales políticas contables: a modo referencial, se incluyen las siguientes revelaciones de políticas contables en estados financieros de uso general que podrá ser tenida en consideración por las sociedades emisoras para la preparación de este capítulo de los estados financieros:
A9: a. Bases de contabilización (Según NIF Bases de preparación de los Estados Financieros)
A10: Los estados financieros se han preparado siguiendo los criterios de las Normas de Información Financiera (NIF) emitidas por el Consejo de Contadores Públicos del Paraguay sobre la base de costos históricos, excepto para el caso de activos y pasivos en moneda extranjera y las propiedades, planta y equipo según se explica en los puntos c ) y k), y no reconocen en forma integral los efectos de la inflación sobre la situación patrimonial y financiera de la sociedad, sobre los resultados de sus operaciones y los flujos de efectivo, en atención a que la corrección monetaria no constituye una práctica contable obligatoria en el Paraguay.
A12: b. Uso de estimaciones contables
A13: La preparación de los presentes estados financieros requiere que la Gerencia de la sociedad realice estimaciones y evaluaciones que afectan el monto de los activos y pasivos registrados y contingentes, como así también los ingresos y egresos registrados en el ejercicio. Los resultados reales futuros pueden diferir de las estimaciones y evaluaciones realizadas a la fecha de preparación de los presentes estados financieros.
A15: c. Moneda extranjera
A16: Los activos y pasivos en moneda extranjera (dólares estadounidenses) fueron valuados a los tipos de cambio que se encontraban vigentes a la fecha de cierre del balance general, de acuerdo con publicaciones efectuadas por el Banco Central del Paraguay.
A17: Las diferencias de cambio originadas por fluctuaciones en los tipos de cambio producidos entre las fechas de concertación de las operaciones y su liquidación o valuación al cierre del ejercicio, son reconocidas en resultados.
B18: Setiembre 2021
E19: Tipo de Cambio Comprador | F19: Tipo de Cambio vendedor
B20: Cuentas Activas - US$ 1 = G. | E20: 6895.8
B21: Cuentas Pasivas - US$ 1 = G. | F21: 6918.66
B22: Año 2020
E23: Tipo de Cambio Comprador | F23: Tipo de Cambio vendedor
B24: Cuentas Activas - US$ 1 = G. | E24: 6891.96
B25: Cuentas Pasivas - US$ 1 = G. | F25: 6941.65
A28: d. Efectivo y equivalentes de efectivo
A29: Se considerarán dentro del concepto de efectivo los saldos en efectivo, disponibilidades en cuentas bancarias y toda inversión de muy alta liquidez, con vencimiento originalmente pactado no superior a tres meses.
A31: e. Inversiones
A32: Las inversiones temporales se valúan de acuerdo a los siguientes criterios de valuación: Colocaciones financieras en moneda local: a su valor nominal más los intereses devengados al cierre del año/período. Ver Nota 4 Colocaciones financieras en moneda extranjera: a su valor de cotización al cierre del año/período más intereses devengados a ese momento. Ver Nota 4 Las inversiones no corrientes en sociedades donde no se ejerce el control, se valúan al costo Ver Nota 8
A34: f. Previsión para cuentas de dudoso cobro/incobrables
A35: En cuanto a la constitución de previsiones, la entidad se encuentra ceñida a lo establecido en el Art. Nº 126 de la Ley Nº 5810/17 del Mercado de Valores.
A36: Como mejor practica y cobertura, la entidad mantiene previsiones según su politica de créditos.
A38: g. Inventarios
A39: Las existencias se valúan al menor entre su costo de adquisición o de producción y su valor neto de realización (NIF 12, párrafo 5). Para determinar el consumo (baja de inventarios) se aplicarán las fórmulas de costeo siguientes: FIFO, (Primero Entrado Primero en Salir – PEPS); PPP (Precio Promedio Ponderado); o identificación específica (NIF 12, párrafos 16 a 20).
A42: h. Activos disponibles para la venta
A43: Los activos disponibles para la venta representan bienes que fueron desafectados de la actividad productiva y se mantienen con el único objetivo de ser vendidos. Los mismos se valúan, sin amortizar, al menor entre el valor de mercado de los mismos y su costo (valor libro) al momento de su designación como disponibles para la venta.
A46: i. Previsiones para desvalorización y deterioro de inventarios
A47: Las previsiones para desvalorización y deterioro de inventarios han sido estimadas tomando como base la valorización del stock deteriorado existente al cierre del ejercicio.
A49: j. Propiedades, planta y equipo
A50: i. En el período anterior los valores de origen de los bienes de uso y sus depreciaciones acumuladas existentes al inicio del ejercicio se encontraban revaluados de acuerdo a lo establecido en la Ley Nº 125/91, y la Ley N.º 2421/04 considerando los coeficientes de actualización anual suministrados a tal efecto por el Ministerio de Hacienda. En el periodo actual no se revaluarán solo se depreciarán de acuerdo a lo establecido en la Ley N.º 6.380/19 considerando los coeficientes de actualización anual suministrados a tal efecto por el Ministerio de Hacienda.”. El Poder Ejecutivo podrá establecer el revalúo obligatorio de los bienes del activo fijo, cuando la variación del Índice de Precios al Consumo determinado por el BCP alcance al menos 20% (veinte por ciento), acumulado desde el ejercicio en el cual se haya dispuesto el último ajuste por revalúo. El reconocimiento del revalúo obligatorio establecido por el Poder Ejecutivo formará parte de una reserva patrimonial cuyo único destino podrá ser la capitalización; al 31 de diciembre de 2020 el IPC acumulado ascendió a 2,2%, por lo cual no se aplicó el revalúo sobre dichos bienes.
A51: ii. Los bienes incorporados en el ejercicio se hallan registrados por su valor de adquisición; la depreciación de los mismos se computan al año siguiente de su adquisición.
A52: iii. Las mejoras o adiciones son capitalizadas, mientras que los gastos de mantenimiento y/o reparaciones que no aumentan el valor de los activos ni prolongan su vida útil, son imputados como gastos en el período en que se originan.
A53: iv. El valor residual de los bienes revaluados considerados en su conjunto no excede su valor recuperable al cierre del ejercicio.
A54: k. Intangibles
A55: Los intangibles se exponen a su costo incurrido menos las correspondientes amortizaciones acumuladas al cierre del año.
A57: l. Reconocimiento de ingresos y egresos
A58: Los ingresos y egresos son reconocidos en función de su devengamiento.
A60: m. Impuesto a la renta
A61: El impuesto a la renta que se carga a los resultados del año a la tasa del 10% se basa en la utilidad contable antes de este concepto, ajustada por las partidas que la Ley N° 6.380/19 (De modernizacion y simplificacion del sistema tributario nacional), y sus reglamentaciones que incluyen o excluyen ajustes para la determinación de la renta neta imponible.
A63: n. Derechos en Fideicomiso
A64: Se manienen registros en el Activo de los bienes enregados a Fideicomiso. Ver nota 10

Sheet Nota 3
A1: =Indice!C1 -> GRUPO VAZQUEZ S.A.E. | E1: BG
A6: NOTA 3 - EFECTIVO Y EQUIVALENTE DE EFECTIVO
A7: En miles de guaranies
A9: La composición de la cuenta es la siguiente:
A11: Concepto | C11: Setiembre 2021 | D11: Diciembre 2020
A13: Caja | C13: 4827.06 | D13: 636098.267
A14: Fondos Fijos | C14: 76.562 | D14: 2897.5
A15: Bancos Locales - Moneda local Guaraníes | C15: 7157088.702 | D15: 797633.028
A16: Bancos Locales - Moneda extranjera Dólares | C16: 319264.507 | D16: 114951.553
A17: Total | C17: =SUM($C$13:C16) -> 7481256.831 | D17: =SUM($D$13:D16) -> 1551580.348

Sheet Nota 4
A1: =Indice!C1 -> GRUPO VAZQUEZ S.A.E. | E1: BG
A5: NOTA 4 - INVERSIONES TEMPORALES
A6: En miles de guaranies
A8: La composición de la cuenta es la siguiente:
B9: En miles de guaranies
A10: Concepto | B10: Setiembre 2021 | C10: Diciembre 2020
A11: Inversiones en Titulos del Sistema Financiero Local - Moneda Local Guaraníes | B11: 25521758.06 | C11: 0
A12: Inversiones en Titulos del Sistema Financiero Local - Moneda Extranjera Dólares | B12: 0 | C12: 0
A13: Inversiones en Titulos del Sistema Financiero Local - Moneda Extranjera otros | B13: 0 | C13: 0
A14: Inversiones en Mercado Bursatil Local - Moneda Local Guaraníes | B14: 0 | C14: 0
A15: Inversiones en Mercado Bursatil Local - Moneda Extranjera Dólares | B15: 0 | C15: 0
A16: Inversiones en Mercado Bursatil Extranjera - Moneda Extranjera Dólares | B16: 0 | C16: 0
A17: Inversiones en Mercado Bursatil Extranjera - Moneda Extranjera otros | B17: 0 | C17: 0
A18: Otras inversiones - Moneda Local Guaraníes | B18: 9356230.736 | C18: 0
A19: Otras inversiones - Moneda Extranjera Dólares | B19: 17216279.57 | C19: 0
A20: Total | B20: =SUM($B$11:B19) -> 52094268.36 | C20: =SUM($C$11:C19) -> 0

Sheet Nota 5
A1: =Indice!C1 -> GRUPO VAZQUEZ S.A.E. | F1: BG
A5: NOTA 5 – CUENTAS POR COBRAR COMERCIALES
A6: En miles de guaranies
A8: Las cuentas a cobrar comerciales a corto plazo se integran como sigue:
C9: En miles de guaraníes
C10: Setiembre 2021 | D10: Diciembre 2020 | F10: Composición de la cartera de créditos por ventas | G10: =IFERROR(IF(Indice!B6="","2XX2",(Indice!B6)),"2XX2") -> 2021-09-30
A11: Deudores por ventas locales | B11: Moneda Local Guaraníes | C11: 420573.418 | D11: 253741.256 | F11: Situación | G11: Monto | H11: % Previsiones sobre Cartera
A12: Deudores por ventas locales | B12: Moneda Extranjera Dólares | C12: 34958980.99 | D12: 447977.4 | F12: A Total Cartera no Vencida | G12: =+C13 -> 35379554.4 | H12: 0
A13: Total | C13: =+SUM($C$11:C12) -> 35379554.4 | D13: =+SUM($D$11:D12) -> 701718.656 | F13: B. Total Cartera Vencida | G13: 0
F14: Composición Cartera Vencida
F15: Normal | G15: 0 | H15: 0
A16: Las cuentas a cobrar comerciales a largo plazo se integran como sigue: | F16: En Gestión de Cobro | G16: 0 | H16: 0
C17: En miles de guaraníes | F17: En Gestión de Cobro Judicial | G17: 0 | H17: 0
C18: Setiembre 2021 | D18: Diciembre 2020
A19: Deudores por ventas locales | B19: Moneda Local Guaraníes | C19: 0 | D19: 0 | F19: Total de la cartera de créditos (A+B) | G19: =G12+G13 -> 35379554.4
A20: Deudores por ventas locales | B20: Moneda Extranjera Dólares | C20: 0 | D20: 0
A21: Total | C21: =+SUM($C$19:C20) -> 0 | D21: =+SUM($D$19:D20) -> 0 | F21: (-) Total Previsiones | G21: =-((G12*H12)+(SUMPRODUCT(G15:G17,H15:H17))) -> 0
F23: TOTAL NETO DE LA CARTERA DE CRÉDITOS | G23: =G19+G21 -> 35379554.4
F25: Observaciones
F26: Criterios de Clasificación utilizados | G26: De | H26: A
F27: Normal | G27: 1 | H27: 30
F28: En Gestión de Cobro | G28: 31 | H28: 60
F29: En Gestión de Cobro Judicial | G29: 61 | H29: 10000

Sheet Nota 6
A1: =Indice!C1 -> GRUPO VAZQUEZ S.A.E. | D1: BG
A5: NOTA 6 - OTROS CRÉDITOS
A6: En miles de guaranies
A8: El rubro de otros créditos se compone como sigue:
A10: Corrientes | E10: No corrientes
A12: Concepto | B12: Setiembre 2021 | C12: Diciembre 2020 | E12: Concepto | F12: Setiembre 2021 | G12: Diciembre 2020
A13: Anticipos a proveedores | B13: 9301209.981 | C13: 2864274.227 | E13: Cuentas a Cobrar | F13: 7017555.555 | G13: 11900097.3
A14: Gastos pagados por adelantado | B14: 2153037.165 | C14: 447377.481 | E14: Total | F14: =SUM(F13:F13) -> 7017555.555 | G14: =SUM(G13:G13) -> 11900097.3
A15: Anticipo Impuesto a la Renta | B15: 432254.553 | C15: 109965
A16: Retención Impuesto a la Renta | B16: 309.9 | C16: 107.215
A17: Retención Impuesto al Valor agregado | B17: 29974.698 | C17: 0
A18: Credito Fiscal - IVA | B18: 4222188.694 | C18: 4501488.06
A19: Creditos Fiscales - Entidad Absorbida | B19: 2039147.293 | C19: 2039110.929
A20: Otras cuentas por Cobrar | B20: 4154415.04 | C20: 1347394.603
A21: Anticipos de Salarios | B21: 16150.274 | C21: 262.5
A22: Total | B22: =SUM($B$13:B21) -> 22348687.6 | C22: =SUM($C$13:C21) -> 11309980.01

Sheet Nota 7
A1: =Indice!C1 -> GRUPO VAZQUEZ S.A.E. | D1: BG
A5: NOTA 7 – INVENTARIOS
A6: En miles de guaranies
A8: Los bienes de cambio están compuestos de la siguiente manera:
A10: Concepto | B10: Setiembre 2021 | C10: Diciembre 2020
A11: Mercaderías | B11: 7712247.747 | C11: 43935726.82
A12: Productos Forestales | B12: 0 | C12: 25650306.89
A13: Activos Biologicos en Produccion | B13: 13093764.05 | C13: 9442578.18
A14: Total | B14: =SUM(B11:B13) -> 20806011.79 | C14: =SUM(C11:C13) -> 79028611.89

Sheet Nota 8
A1: =Indice!C1 -> GRUPO VAZQUEZ S.A.E. | D1: BG
A5: Nota 8 - INVERSIONES EN ASOCIADAS
A6: En miles de guaraníes
A8: Las inversiones en sociedades donde no se ejerce control se describen a continuación
A10: Periodo | B10: Setiembre 2021 | C10: Diciembre 2020
A11: Total Inversión | B11: =SUM($I$16:I24) -> 326676492.5 | C11: 154343509.4
A13: a) Datos sobre la sociedad: | G13: a) Datos sobre la inversión:
D14: =IFERROR(IF(Indice!B6="","2XX2",YEAR(Indice!B6)),"2XX2") -> 2021
A15: Nombre de Sociedad | B15: RUC | C15: Cantidad de acciones | D15: Total Patrimonio neto | E15: Total del resultado | G15: Cantidad de acciones | H15: Participación sobre los votos (%) | I15: Total Inversión (miles de Gs) | J15: Participación sobre el Patrimonio Neto (%) | K15: Total valuación patrimonial proporcional | L15: Resultado sobre inversiones
A16: STE S.A. | B16: 80090944-5 | C16: 364 | D16: 44600819.07 | E16: 8049225.301 | G16: 1 | H16: =+G16/C16 -> 0.002747252747 | I16: 100000 | J16: =+G16/C16 -> 0.002747252747 | K16: =J16*D16 -> 122529.7227 | L16: =J16*E16 -> 22113.25632
A17: Grupo Hendy S.A. | B17: 80082125-4 | C17: 100 | D17: =649047631/1000 -> 649047.631 | E17: =-1345363137/1000 -> -1345363.137 | G17: 32 | H17: 0.04 | I17: 52783.467 | J17: =+G17/C17 -> 0.32 | K17: =J17*D17 -> 207695.2419 | L17: =J17*E17 -> -430516.2038
A18: Grupo M S.A. | B18: 80084086-0 | C18: 100 | D18: =1286946573/1000 -> 1286946.573 | E18: =416107417/1000 -> 416107.417 | G18: 45 | H18: 0.1 | I18: 31393.418 | J18: 0.45 | K18: 579125.9579 | L18: 187248.3377
A19: CrediCentro S.A.E.C.A. | B19: 80011000-5 | C19: 407837 | D19: 436303289.7 | E19: 11147096.43 | G19: 123791 | H19: 0.8443 | I19: 146918132.5 | J19: =+G19/C19 -> 0.3035305772 | K19: =J19*D19 -> 132431389.4 | L19: =J19*E19 -> 3383484.613
A20: MOWI S.A. | B20: 80115208-9 | C20: 8000 | D20: 7996186.547 | E20: -3813.453 | G20: 7999 | H20: 0.99 | I20: 7999000 | J20: =+G20/C20 -> 0.999875 | K20: 7995187.024 | L20: -3812.976318
A21: CBS.S.A. | B21: 80110547-1 | C21: 2 | D21: 2000 | E21: 0 | G21: 1 | H21: 0.5 | I21: 1000 | J21: =+G21/C21 -> 0.5 | K21: 1000 | L21: 0
A22: ITTI S.A.E.C.A. | B22: 80028355-4 | C22: 34936 | D22: 53923174.27 | E22: 16441415.17 | G22: 33536 | H22: 0.9873 | I22: 33536616.55 | J22: =+G22/C22 -> 0.9599267232 | K22: 51762295.98 | L22: 15782553.79
A23: Financiera El Comercio S.A.E.C.A. | B23: 80026157-7 | C23: 90510 | D23: 142377481 | E23: 12606349.76 | G23: 57990 | H23: 0.6379 | I23: 118822566.6 | J23: =+G23/C23 -> 0.6407026848 | K23: 91221634.32 | L23: 8076922.137
A24: Cobranzas y Pagos S.A. | B24: 80070551-3 | C24: 100 | D24: 145063014.3 | E24: 9309321.039 | G24: 0 | H24: 0 | I24: 19215000 | J24: =+IFERROR(G24/C24,0) -> 0 | K24: 0 | L24: 0
A27: OTRAS INVERSIONES
A28: En miles de guaranies
A30: La composición de la cuenta a largo plazo es la siguiente:
A32: Concepto | C32: Setiembre 2021 | D32: Diciembre 2020
A34: Inversiones en IT Consultores S.A. | C34: 0 | D34: 10534781.49
A35: Inversiones en The Forest S.A. | C35: 2372893.525 | D35: 1623128.423
A36: Inversiones en Titulos - Moneda Local Guaraníes | C36: 0 | D36: 0
A37: Inversiones en Titulos - Moneda Extranjera Dólares | C37: 0 | D37: 0
A38: Inversiones en Mercado Bursatil Extranjera | C38: 0 | D38: 0
A39: Menos Previsiones | C39: 0 | D39: 0
A40: Total | C40: =SUM(C34:C39) -> 2372893.525 | D40: =SUM(D34:D39) -> 12157909.91

Sheet Nota 9
A1: =Indice!C1 -> GRUPO VAZQUEZ S.A.E. | L1: BG
A5: NOTA 9 - PROPIEDADES, PLANTA Y EQUIPO - NETO
A6: En miles de guaraníes | J6: -1
B8: Costo histórico revaluado al inicio del año | C8: Adquisiciones | D8: Bajas | E8: Revalúo del año | F8: Valor de origen revaluado al final del año | G8: Depreciación acumulada revaluada al inicio del año | H8: Depreciación del año | I8: Bajas de depreciaciones acumuladas | J8: Revalúo depreciación acumulada del año | K8: Depreciación acumulada revaluada al final del año | L8: Valor neto contable
L9: Setiembre 2021 | M9: Diciembre 2020
A10: Instalaciones | B10: 1195039.489 | C10: 16834.71918 | E10: 0 | F10: =SUM(B10:E10) -> 1211874.208 | G10: 309824.991 | H10: 47564.37962 | K10: =SUM(G10:J10) -> 357389.3706 | L10: =+F10-K10 -> 854484.8374 | M10: =+B10-G10 -> 885214.4978
A11: Rodados | B11: 7766032.6 | C11: 1112183.654 | E11: 0 | F11: =SUM(B11:E11) -> 8878216.254 | G11: 307643.995 | H11: 145576.824 | K11: =SUM(G11:J11) -> 453220.819 | L11: =+F11-K11 -> 8424995.435 | M11: =+B11-G11 -> 7458388.605
A12: Equipos | B12: 735558.346 | C12: 47953.157 | E12: 0 | F12: 783511.503 | G12: 166780.103 | H12: 35578.84651 | K12: 202358.9495 | L12: 581152.5535 | M12: 568778.243
A13: Muebles y útiles | B13: 649831.758 | C13: 266083.302 | E13: 0 | F13: 915915.06 | G13: 200224.4 | H13: 50647.676 | K13: 250872.076 | L13: 665042.984 | M13: 449607.358
A14: Equipos de comunicación | B14: 0 | E14: 0 | F14: 0 | G14: 0 | H14: 0 | K14: 0 | L14: 0 | M14: 0
A15: Maquinarias y herramientas | B15: 4119604.645 | E15: 0 | F15: 4119604.645 | G15: 1530298 | H15: 378220.2025 | K15: 1908518.203 | L15: 2211086.442 | M15: 2589306.645
A16: Obras en curso | B16: 0 | E16: 0 | F16: 0 | G16: 0 | H16: 0 | K16: 0 | L16: 0 | M16: 0
A17: Inmuebles | B17: 30620939.77 | C17: 33395167.04 | D17: -57964079.07 | E17: 0 | F17: 6052027.739 | G17: 0 | H17: 0 | K17: 0 | L17: 6052027.739 | M17: =+B17-G17 -> 30620939.77
A18: Campos | B18: 0 | E18: 0 | F18: 0 | G18: 0 | H18: 0 | K18: 0 | L18: 0 | M18: 0
A19: Mejoras en predio ajeno | B19: 1374684.802 | C19: =1285046.309+0.0029 -> 1285046.312 | E19: 0 | F19: 2659731.114 | G19: 105243.216 | H19: 78932.38933 | K19: 184175.6053 | L19: 2475555.509 | M19: 1269441.586
A20: Totales | B20: =SUM(B10:B19) -> 46461691.41 | C20: 36123268.18 | D20: -57964079.07 | E20: 0 | F20: 24620880.52 | G20: 2620014.705 | H20: 736520.318 | I20: 0 | J20: 0 | K20: 3356535.023 | L20: =SUM($L$10:L19) -> 21264345.5 | M20: =SUM($M$10:M19) -> 43841676.71

Sheet Nota 10
A1: =Indice!C1 -> GRUPO VAZQUEZ S.A.E. | C1: BG
A5: NOTA 10 – ACTIVOS EN FIDEICOMISO
A6: En miles de guaranies
B8: Setiembre 2021 | C8: Diciembre 2020
A9: Propiedad, planta y equipo
A10: Campos Rurales - Estancia Don Miguel | B10: 130934449.5 | C10: 130934449.5
A11: Campos Rurales - Mejoras | B11: 1517444.633 | C11: 0
A12: Inmuebles - Santisima Trinidad | B12: 7744860.15 | C12: 0
A13: Total | B13: =SUM(B10:B12) -> 140196754.3 | C13: =SUM(C10:C12) -> 130934449.5

Sheet Nota 11
A1: =Indice!C1 -> GRUPO VAZQUEZ S.A.E. | F1: BG
A5: NOTA 11 – ACTIVOS INTANGIBLES
A6: En miles de guaranies
A8: Activos intangibles | B8: Setiembre 2021 | C8: Diciembre 2020
A9: Gastos Proyecto de Inversion | B9: 2855627.538 | C9: 0
A10: Software | B10: 38364.623 | C10: 14822.771
A11: Marcas | B11: 300000
A12: Gastos por Fusion | B12: 8364439.272 | C12: 8364439.272
A13: (-) Amortizaciones | B13: -85123.472 | C13: 0
A14: Total general | B14: =SUM(B9:B13) -> 11473307.96 | C14: =SUM(C9:C13) -> 8379262.043

Sheet Nota 12
A1: =Indice!C1 -> GRUPO VAZQUEZ S.A.E. | E1: BG
A5: NOTA 12 – GOODWILL
A6: En miles de guaranies
A8: Goodwill | B8: Setiembre 2021 | C8: Diciembre 2020
A12: Total general | B12: =SUM(B9:B11) -> 0 | C12: =SUM(C9:C11) -> 0

Sheet Nota 13
A1: =Indice!C1 -> GRUPO VAZQUEZ S.A.E. | C1: BG
A5: NOTA 13 – CUENTAS POR PAGAR COMERCIALES
A6: En miles de guaranies
A8: Las cuentas por pagar comerciales se componen como sigue:
A10: Corrientes | B10: Simbología según ISO 4217 | C10: Indicación de Moneda | D10: Setiembre 2021 | E10: Diciembre 2020
A11: Proveedores - Entidades Relacionadas | B11: PYG | C11: =IFERROR(VLOOKUP(B11,'Base de Monedas'!A:B,2,0),"") -> Guaraní | D11: 15413665.67 | E11: 13665.672
A12: Proveedores locales - Moneda Local | B12: PYG | C12: =IFERROR(VLOOKUP(B12,'Base de Monedas'!A:B,2,0),"") -> Guaraní | D12: 1450107.07 | E12: 892451.732
A13: Proveedores locales - Moneda Extranjera | B13: PYG | C13: =IFERROR(VLOOKUP(B13,'Base de Monedas'!A:B,2,0),"") -> Guaraní | D13: 6031457.396 | E13: 2683531.311
A14: Tarjetas de Credito | B14: PYG | C14: =IFERROR(VLOOKUP(B14,'Base de Monedas'!A:B,2,0),"") -> Guaraní | D14: 0 | E14: 15895.743
A15: Total cuentas a pagar por comerciales | D15: =SUM($D$11:D14) -> 22895230.14 | E15: =SUM($E$11:E14) -> 3605544.458
A19: No Corrientes | B19: Simbología según ISO 4217 | C19: Indicación de Moneda | D19: Setiembre 2021 | E19: Diciembre 2020
A20: Proveedores - Entidades Relacionadas | B20: PYG | C20: =IFERROR(VLOOKUP(B20,'Base de Monedas'!A:B,2,0),"") -> Guaraní | D20: 23133619.43 | E20: 23133619.43
A21: Proveedores locales - Moneda Extranjera | B21: PYG | C21: =IFERROR(VLOOKUP(B21,'Base de Monedas'!A:B,2,0),"") -> Guaraní | D21: 8689731.104 | E21: 2158746.943
A22: Total cuentas a pagar por comerciales | D22: =SUM($D$20:D21) -> 31823350.54 | E22: =SUM($E$20:E21) -> 25292366.38

Sheet Nota 14
A1: =Indice!C1 -> GRUPO VAZQUEZ S.A.E. | E1: BG | L1: BG
A5: NOTA 14 – PRESTAMOS A CORTO Y LARGO PLAZO
A6: En miles de guaranies
A8: Corrientes
D9: Setiembre 2021 | J9: Diciembre 2020
A10: Préstamos de Entidades Locales | B10: Vencimiento | C10: Símbolo de Moneda | D10: Moneda | E10: Importe (miles de Gs) | F10: Tipo de Garantía | H10: Vencimiento | I10: Símbolo de Moneda | J10: Moneda | K10: Importe (miles de Gs) | L10: Tipo de Garantía
A11: BANCO ITAU S.A.E.C.A. | D11: =IFERROR(VLOOKUP(C11,'Base de Monedas'!A:B,2,0),"") ->  | J11: =IFERROR(VLOOKUP(I11,'Base de Monedas'!G:H,2,0),"") -> 
A12: CRISOL Y ENCARNACION FINANCIERA S.A.E.C.A. | C12: PYG | D12: =IFERROR(VLOOKUP(C12,'Base de Monedas'!A:B,2,0),"") -> Guaraní | E12: 0 | F12: Codeudoria
A13: BANCO BASA S.A. | B13: 2021 | C13: PYG | D13: =IFERROR(VLOOKUP(C13,'Base de Monedas'!A:B,2,0),"") -> Guaraní | E13: 3600000 | F13: Codeudoria | H13: 2021 | I13: PYG | J13: =IFERROR(VLOOKUP(I13,'Base de Monedas'!G:H,2,0),"") ->  | K13: 3600000 | L13: Codeudoria
A14: FINLATINA S.A. DE FINANZAS | C14: PYG | D14: =IFERROR(VLOOKUP(C14,'Base de Monedas'!A:B,2,0),"") -> Guaraní | F14: Codeudoria | H14: 2021 | I14: PYG | J14: =IFERROR(VLOOKUP(I14,'Base de Monedas'!G:H,2,0),"") ->  | K14: 487726.027 | L14: Codeudoria
A15: FINEXPAR S.A.E.C.A. | B15: 2021 | C15: PYG | D15: =IFERROR(VLOOKUP(C15,'Base de Monedas'!A:B,2,0),"") -> Guaraní | E15: =1888298693/1000 -> 1888298.693 | F15: Codeudoria
A16: CREDICENTRO S.A.E.C.A. | B16: 2022 | C16: PYG | D16: =IFERROR(VLOOKUP(C16,'Base de Monedas'!A:B,2,0),"") -> Guaraní | E16: 1455780.822 | F16: Codeudoria | J16: =IFERROR(VLOOKUP(I16,'Base de Monedas'!G:H,2,0),"") -> 
A17: CREDICENTRO S.A.E.C.A. | C17: USD | D17: =IFERROR(VLOOKUP(C17,'Base de Monedas'!A:B,2,0),"") -> Dólar estadounidense | F17: Codeudoria | H17: 2021 | I17: USD | J17: =IFERROR(VLOOKUP(I17,'Base de Monedas'!G:H,2,0),"") ->  | K17: 4250125.866 | L17: Codeudoria
A18: TARJETA DE CREDITO -VISA 1 | B18: 2021 | C18: PYG | D18: =IFERROR(VLOOKUP(C18,'Base de Monedas'!A:B,2,0),"") -> Guaraní | E18: -82997.64 | F18: A sola Firma | H18: 2021 | I18: USD | J18: =IFERROR(VLOOKUP(I18,'Base de Monedas'!G:H,2,0),"") ->  | K18: 29790.634 | L18: A sola Firma
A19: TARJETA DE CREDITO -VISA 2 | B19: 2021 | C19: PYG | D19: =IFERROR(VLOOKUP(C19,'Base de Monedas'!A:B,2,0),"") -> Guaraní | E19: -3979.968 | F19: A sola Firma | H19: 2021 | I19: USD | J19: =IFERROR(VLOOKUP(I19,'Base de Monedas'!G:H,2,0),"") ->  | K19: 2756.026 | L19: A sola Firma
A20: Intereses préstamos entidades financieras a pagar | D20: =IFERROR(VLOOKUP(C20,'Base de Monedas'!A:B,2,0),"") ->  | J20: =IFERROR(VLOOKUP(I20,'Base de Monedas'!G:H,2,0),"") -> 
A21: Intereses a pagar | C21: PYG | D21: =IFERROR(VLOOKUP(C21,'Base de Monedas'!A:B,2,0),"") -> Guaraní | E21: 2021930.712 | I21: PYG | J21: =IFERROR(VLOOKUP(I21,'Base de Monedas'!G:H,2,0),"") ->  | K21: 438356.165
A22: (-) Intereses a Devengar | C22: PYG | D22: =IFERROR(VLOOKUP(C22,'Base de Monedas'!A:B,2,0),"") -> Guaraní | E22: -413552.862 | I22: PYG | J22: =IFERROR(VLOOKUP(I22,'Base de Monedas'!G:H,2,0),"") ->  | K22: -389850.073
A23: Intereses a pagar | C23: USD | D23: =IFERROR(VLOOKUP(C23,'Base de Monedas'!A:B,2,0),"") -> Dólar estadounidense | I23: USD | J23: =IFERROR(VLOOKUP(I23,'Base de Monedas'!G:H,2,0),"") ->  | K23: 420077.4206
A24: (-) Intereses a Devengar | C24: USD | D24: =IFERROR(VLOOKUP(C24,'Base de Monedas'!A:B,2,0),"") -> Dólar estadounidense | I24: USD | J24: =IFERROR(VLOOKUP(I24,'Base de Monedas'!G:H,2,0),"") ->  | K24: -295050.6724
A25: Total | D25: =IFERROR(VLOOKUP(C25,'Base de Monedas'!A:B,2,0),"") ->  | E25: =SUM($E$12:E24) -> 8465479.757 | K25: =SUM($K$11:K24) -> 8543931.394
A28: No Corrientes | K28: =+SUM(K31:K36) -> 115631408
D29: Setiembre 2021 | J29: Diciembre 2020
A30: Préstamos de Entidades Locales (*) | B30: Vencimiento | C30: Símbolo de Moneda | D30: Moneda | E30: Importe (miles de Gs) | F30: Tipo de garantía | H30: Vencimiento | I30: Símbolo de Moneda | J30: Moneda | K30: Importe (miles de Gs) | L30: Tipo de Garantía
A31: BANCO ITAU S.A.E.C.A. | B31: 2025 | C31: USD | D31: =IFERROR(VLOOKUP(C31,'Base de Monedas'!A:B,2,0),"") -> Dólar estadounidense | E31: 63743939.53 | F31: Fideicomiso | H31: 2025 | I31: USD | J31: =IFERROR(VLOOKUP(I31,'Base de Monedas'!G:H,2,0),"") ->  | K31: 63955753.84 | L31: Fideicomiso
A32: FINEXPAR S.A.E.C.A. | B32: 2030 | C32: PYG | D32: =IFERROR(VLOOKUP(C32,'Base de Monedas'!A:B,2,0),"") -> Guaraní | E32: 22576551.7 | F32: Codeudoria | H32: 2030 | I32: PYG | J32: =IFERROR(VLOOKUP(I32,'Base de Monedas'!G:H,2,0),"") ->  | K32: 22576551.7 | L32: Codeudoria
A33: CRISOL Y ENCARNACION FINANCIERA S.A.E.C.A. | C33: PYG | D33: =IFERROR(VLOOKUP(C33,'Base de Monedas'!A:B,2,0),"") -> Guaraní | F33: Codeudoria | H33: 2026 | I33: PYG | J33: =IFERROR(VLOOKUP(I33,'Base de Monedas'!G:H,2,0),"") ->  | K33: 3204854.626 | L33: Codeudoria
A34: BANCO PARA LA COMERCIALIZACION Y LA PRODUCCION S.A. (BANCOP | C34: USD | D34: =IFERROR(VLOOKUP(C34,'Base de Monedas'!A:B,2,0),"") -> Dólar estadounidense | F34: Codeudoria | H34: 2022 | I34: USD | J34: =IFERROR(VLOOKUP(I34,'Base de Monedas'!G:H,2,0),"") ->  | K34: 598481.7129 | L34: Codeudoria
A35: CREDICENTRO S.A.E.C.A. | C35: USD | D35: =IFERROR(VLOOKUP(C35,'Base de Monedas'!A:B,2,0),"") -> Dólar estadounidense | F35: A sola Firma | H35: 2028 | I35: USD | J35: =IFERROR(VLOOKUP(I35,'Base de Monedas'!G:H,2,0),"") ->  | K35: 15813359.98 | L35: A sola Firma
A36: CREDICENTRO S.A.E.C.A. | C36: PYG | D36: =IFERROR(VLOOKUP(C36,'Base de Monedas'!A:B,2,0),"") -> Guaraní | F36: A sola Firma | H36: 2022 | I36: PYG | J36: =IFERROR(VLOOKUP(I36,'Base de Monedas'!G:H,2,0),"") ->  | K36: 9482406.145 | L36: A sola Firma
A37: Deudas bursátiles | D37: =IFERROR(VLOOKUP(C37,'Base de Monedas'!A:B,2,0),"") ->  | J37: =IFERROR(VLOOKUP(I37,'Base de Monedas'!G:H,2,0),"") -> 
A38: Intereses préstamos entidades financieras a pagar | D38: =IFERROR(VLOOKUP(C38,'Base de Monedas'!A:B,2,0),"") ->  | J38: =IFERROR(VLOOKUP(I38,'Base de Monedas'!G:H,2,0),"") -> 
A39: Intereses a pagar | C39: PYG | D39: =IFERROR(VLOOKUP(C39,'Base de Monedas'!A:B,2,0),"") -> Guaraní | E39: 15587094.96 | I39: PYG | J39: =IFERROR(VLOOKUP(I39,'Base de Monedas'!G:H,2,0),"") ->  | K39: 20015266.61
A40: (-) Intereses a Devengar | C40: PYG | D40: =IFERROR(VLOOKUP(C40,'Base de Monedas'!A:B,2,0),"") -> Guaraní | E40: -15587094.96 | I40: PYG | J40: =IFERROR(VLOOKUP(I40,'Base de Monedas'!G:H,2,0),"") ->  | K40: -19913814.26
A41: Intereses a pagar | C41: USD | D41: =IFERROR(VLOOKUP(C41,'Base de Monedas'!A:B,2,0),"") -> Dólar estadounidense | E41: 18785775.54 | I41: USD | J41: =IFERROR(VLOOKUP(I41,'Base de Monedas'!G:H,2,0),"") ->  | K41: 24379497.55
A42: (-) Intereses a Devengar | C42: USD | D42: =IFERROR(VLOOKUP(C42,'Base de Monedas'!A:B,2,0),"") -> Dólar estadounidense | E42: -15085734.22 | I42: USD | J42: =IFERROR(VLOOKUP(I42,'Base de Monedas'!G:H,2,0),"") ->  | K42: -23181736.32
A43: Total | D43: =IFERROR(VLOOKUP(C43,'Base de Monedas'!A:B,2,0),"") ->  | E43: =SUM($E$31:E42) -> 90020532.55 | J43: =IFERROR(VLOOKUP(I43,'Base de Monedas'!A:B,2,0),"") ->  | K43: =SUM($K$31:K42) -> 116930621.6
J44: =IFERROR(VLOOKUP(I44,'Base de Monedas'!H:I,2,0),"") -> 
A45: No Corrientes | K45: =+SUM(K48:K49) -> 0
D46: Setiembre 2021 | J46: Diciembre 2020
A47: Bonos | B47: Vencimiento | C47: Símbolo de Moneda | D47: Moneda | E47: Importe (miles de Gs) | F47: Tipo de garantía | H47: Vencimiento | I47: Símbolo de Moneda | J47: Moneda | K47: Importe (miles de Gs) | L47: Tipo de Garantía
A48: Bonos Emitidos | B48: 2031 | C48: USD | D48: =IFERROR(VLOOKUP(C48,'Base de Monedas'!A:B,2,0),"") -> Dólar estadounidense | E48: 103779900
A49: Bonos Emitidos | B49: 2031 | C49: PYG | D49: =IFERROR(VLOOKUP(C49,'Base de Monedas'!A:B,2,0),"") -> Guaraní | E49: 50000000
A50: Deudas bursátiles | D50: =IFERROR(VLOOKUP(C50,'Base de Monedas'!A:B,2,0),"") ->  | J50: =IFERROR(VLOOKUP(I50,'Base de Monedas'!G:H,2,0),"") -> 
A51: Intereses préstamos entidades financieras a pagar | D51: =IFERROR(VLOOKUP(C51,'Base de Monedas'!A:B,2,0),"") ->  | J51: =IFERROR(VLOOKUP(I51,'Base de Monedas'!G:H,2,0),"") -> 
A52: Intereses a pagar | C52: PYG | D52: =IFERROR(VLOOKUP(C52,'Base de Monedas'!A:B,2,0),"") -> Guaraní | E52: 45022808.22
A53: (-) Intereses a Devengar | C53: PYG | D53: =IFERROR(VLOOKUP(C53,'Base de Monedas'!A:B,2,0),"") -> Guaraní | E53: -45007808.22
A54: Intereses a pagar | C54: USD | D54: =IFERROR(VLOOKUP(C54,'Base de Monedas'!A:B,2,0),"") -> Dólar estadounidense | E54: 58157118.39
A55: (-) Intereses a Devengar | C55: USD | D55: =IFERROR(VLOOKUP(C55,'Base de Monedas'!A:B,2,0),"") -> Dólar estadounidense | E55: -58136836.34
A56: Total | D56: =IFERROR(VLOOKUP(C56,'Base de Monedas'!A:B,2,0),"") ->  | E56: =SUM($E$48:E55) -> 153815182.1 | J56: =IFERROR(VLOOKUP(I56,'Base de Monedas'!A:B,2,0),"") ->  | K56: =SUM($K$48:K55) -> 0
A58: (*) La exposicion corresponde a la porcion no corriente, la porcion corriente se expone en Nota 15.

Sheet Nota 15
A1: =Indice!C1 -> GRUPO VAZQUEZ S.A.E. | D1: BG
A5: NOTA 15 – PORCION CORRIENTE DE LA DEUDA A LARGO PLAZO
A6: En miles de guaranies
A8: Porción corriente de la deuda a largo plazo | B8: Setiembre 2021 | C8: Diciembre 2020
A9: BANCO ITAU S.A.E.C.A. USD | B9: 0 | C9: 0
A10: FINEXPAR S.A.E.C.A. PYG | B10: 2508505.74 | C10: 2508505.739
A11: CRISOL Y ENCARNACION FINANCIERA S.A.E.C.A. PYG | B11: 0 | C11: 291350.42
A12: BANCO PARA LA COMERCIALIZACION Y LA PRODUCCION S.A. (BANCOP ) USD | B12: 0 | C12: 526056.563
A13: CREDICENTRO S.A.E.C.A. USD | B13: 0 | C13: 1786337.624
A14: Intereses a pagar PYG | B14: 0 | C14: 4402215.595
A15: (-) Intereses a Devengar PYG | B15: 0 | C15: -3200615.276
A16: Intereses a pagar USD | B16: 0 | C16: 1471989.725
A17: (-) Intereses a Devengar USD | B17: 0 | C17: -1033884.557
A18: Total general | B18: =SUM($B$9:B17) -> 2508505.74 | C18: =SUM($C$9:C17) -> 6751955.833

Sheet Nota 16
A1: =Indice!C1 -> GRUPO VAZQUEZ S.A.E. | F1: BG
A5: NOTA 16 – REMUNERACIONES Y CARGAS SOCIALES A PAGAR
A6: En miles de guaranies
A8: Remuneraciones y cargas sociales a pagar | B8: Setiembre 2021 | C8: Diciembre 2020
A9: Aportes y retenciones a pagar | B9: 129327.262 | C9: 83955.07
A10: Remuneraciones a Pagar | B10: 1004280.529
A11: Total | B11: =SUM($B$9:B10) -> 1133607.791 | C11: =SUM($C$9:C10) -> 83955.07

Sheet Nota 17
A1: =Indice!C1 -> GRUPO VAZQUEZ S.A.E. | D1: BG
A5: NOTA 17 – IMPUESTOS A PAGAR
A6: En miles de guaranies
A8: Impuestos a pagar | B8: Setiembre 2021 | C8: Diciembre 2020
A9: Impuesto a la renta a pagar | B9: 2176755.35 | C9: 2141283.93
A10: Otros impuestos a pagar | B10: 0 | C10: 2083.955
A11: Total | B11: =SUM($B$9:B10) -> 2176755.35 | C11: =SUM($C$9:C10) -> 2143367.885

Sheet Nota 18
A1: =Indice!C1 -> GRUPO VAZQUEZ S.A.E. | D1: BG
A5: NOTA 18 - PROVISIONES
A6: En miles de guaranies
A8: Provisiones | B8: Setiembre 2021 | C8: Diciembre 2020
A10: Alquileres a Pagar
A11: Servicios Basicos a Pagar
A12: Honorarios Profesionales a Pagar
A13: Total | B13: =SUM($B$10:B12) -> 0 | C13: =SUM($C$10:C12) -> 0

Sheet Nota 19
A1: =Indice!C1 -> GRUPO VAZQUEZ S.A.E. | D1: BG
A5: NOTA 19 – OTROS PASIVOS CORRIENTES y NO CORRIENTES
A6: En miles de guaranies
A8: Corrientes | B8: Setiembre 2021 | C8: Diciembre 2020 | E8: No Corrientes | F8: Setiembre 2021 | G8: Diciembre 2020
A9: Otros ingresos diferidos - Anticipo de Clientes | B9: 28371.973 | C9: 18884.5 | E9: Otras Cuentas a Pagar Moneda Local | F9: 32776680.9 | G9: 25740000
A10: Otros Pasivos con Entidades relacionadas | B10: 12848466.47 | C10: 0 | E10: Otras Cuentas a Pagar Moneda Extranjera | F10: 10642710.93 | G10: 10878771.24
A11: Seguros a Pagar | B11: 0 | C11: 26874.274 | E11: Total | F11: =SUM(F9:F10) -> 43419391.83 | G11: =SUM(G9:G10) -> 36618771.24
A12: Obligaciones por Emision de Bonos | B12: 0 | C12: 0
A13: Otras Cuentas a Pagar Moneda Local | B13: 113598.182 | C13: 782650.058
A14: Otras Cuentas a Pagar Moneda Extranjera | B14: 315402.891 | C14: 220294.7
A15: Total | B15: =SUM(B9:B14) -> 13305839.51 | C15: =SUM(C9:C14) -> 1048703.532

Sheet Nota 20
A1: =Indice!C1 -> GRUPO VAZQUEZ S.A.E. | D1: BG
A5: NOTA 20 – CAPITAL INTEGRADO
A6: En miles de guaranies
A8: Fecha | B8: Setiembre 2021 | C8: Diciembre 2020
A9: Monto Capital Social | B9: 300000000 | C9: 300000000
A10: Monto Capital Integrado | B10: 247000000 | C10: 240000000
A11: Monto Aportes No Capitalizados | B11: 54448.339 | C11: 54448.339
A12: Cantidad de Acciones | B12: 2470 | C12: 2400
A13: Valor Nominal de Acciones
A14: Total Capital | B14: =+B10 -> 247000000 | C14: =+C10 -> 240000000 | D14: =+D9 -> 0
A15: Total Aportes No Capitalizados | B15: =+B11 -> 54448.339 | C15: =+C11 -> 54448.339

Sheet Nota 21
A1: =Indice!C1 -> GRUPO VAZQUEZ S.A.E. | F1: BG
A4: NOTA 21 – RESERVAS
A5: En miles de guaranies
B7: Setiembre 2021 | C7: Diciembre 2020
A8: a Reserva de revalúo | B8: 0 | C8: 0
A12: b Reserva legal | B12: 568139.857
A17: c Reservas estatutarias
A21: d Reservas facultativas | B21: =+SUM($B$22:B25) -> 12506990.12 | C21: =+SUM($C$22:C25) -> 1712332.836
A22: d.1. Reserva por VPP | B22: 1712332.836 | C22: 1712332.836
A23: d.2. Reserva por Facultativa | B23: 10794657.28 | C23: 0

Sheet Nota 22
A1: =Indice!C1 -> GRUPO VAZQUEZ S.A.E. | D1: BG
A5: NOTA 21 – DIFERENCIA TRANSITORIA POR CONVERSION
A6: En miles de guaranies
B8: Setiembre 2021 | C8: Diciembre 2020
A9: Diferencia transitoria por conversión

Sheet Nota 23
A1: =Indice!C1 -> GRUPO VAZQUEZ S.A.E. | C1: BG
A4: NOTA 23 – RESULTADOS
A5: En miles de guaranies
B7: Setiembre 2021 | C7: Diciembre 2020
A8: Resultado de ejercicios anteriores | B8: 0 | C8: 0
A9: Resultado del ejercicio actual | B9: 17417674.71 | C9: 11362797.14
A10: Totales | B10: =SUM($B$8:B9) -> 17417674.71 | C10: =SUM($C$8:C9) -> 11362797.14

Sheet Nota 24
A1: =Indice!C1 -> GRUPO VAZQUEZ S.A.E. | C1: BG
A4: NOTA 24 – INTERES MINORITARIO
A5: En miles de guaranies
B7: Setiembre 2021 | C7: Diciembre 2020
A8: Interes Minoritario

Sheet Nota 25
A1: =Indice!C1 -> GRUPO VAZQUEZ S.A.E. | D1: ER
A5: NOTA 25 – VENTAS
A6: En miles de guaranies
A8: Ventas | B8: Setiembre 2021 | C8: Setiembre 2020
A9: Ventas de mercaderias gravadas | B9: 72813154.89 | C9: 72206806.47
A10: Ventas de mercaderias exentas | C10: 11450535.36
A11: Ventas de ganado | B11: 3385232.506 | C11: 5016857.746
A12: Ventas de productos de la explotación forestal | B12: 527250.318 | C12: 174678.045
A13: Ventas de servicios | B13: 3783301.153 | C13: 1083031.845
A14: Venta de bienes del activo fijo | B14: 60121249.44 | C14: 37002512.76
A15: Ingreso por Intereses | B15: 71100.15 | C15: 1108870.127
A16: Ventas de Acciones | B16: 19806000 | C16: 0
A17: Ingreso por dividendos | B17: 10803353.06 | C17: 933893.298
A18: Total | B18: =SUM($B$9:B17) -> 171310641.5 | C18: =SUM($C$9:C17) -> 128977185.7

Sheet Nota 26
A1: =Indice!C1 -> GRUPO VAZQUEZ S.A.E. | C1: ER
A5: NOTA 26 - COSTO DE VENTAS
A6: Miles de guaraníes
A8: Costo de ventas | B8: Setiembre 2021 | C8: Setiembre 2020
A9: Costos de mercaderias gravadas | B9: -56044965.66 | C9: -6774733.337
A10: Costos de mercaderias exentas | B10: 0 | C10: -53695717.25
A11: Costos de ganado | B11: -2161541.632 | C11: -4769107.983
A12: Costos de productos de la explotación forestal | B12: -883.971 | C12: -1441.578
A13: Costos de Acciones | B13: -19806000
A14: Costo de bienes del activo fijo | B14: -50219218.92 | C14: -30240524.34
A15: Total costo de ventas | B15: =SUM($B$9:B14) -> -128232610.2 | C15: =SUM($C$9:C14) -> -95481524.49

Sheet Nota 27
A1: =Indice!C1 -> GRUPO VAZQUEZ S.A.E. | G1: ER
A5: NOTA 27 - GASTOS
A6: Miles de guaraníes
A8: El rubro está compuesto de la siguiente forma:
C10: Setiembre 2021 | F10: Setiembre 2020
B11: Gastos de Ventas | C11: Gastos Administrativos | D11: Total | E11: Gastos de Ventas | F11: Gastos Administrativos | G11: Total
A12: Fletes pagados | B12: 134344.748 | C12: 0 | D12: =+C12+B12 -> 134344.748 | E12: 18191.636 | F12: 0 | G12: =+F12+E12 -> 18191.636
A13: Productos veterinarios | B13: 132958.615 | C13: 0 | D13: 132958.615 | E13: 0 | F13: 0 | G13: 0
A14: Gastos de Publicidad y Propaganda | B14: 39618.963 | C14: 0 | D14: 39618.963 | E14: 9805.67 | F14: 0 | G14: 9805.67
A15: Otros gastos de ventas | B15: 17422.442 | C15: 0 | D15: 17422.442 | E15: 82636.787 | F15: 0 | G15: 82636.787
A16: Guias y otros gastos de comercializacion | B16: 15645.3 | C16: 0 | D16: 15645.3 | E16: 26649.15 | F16: 0 | G16: 26649.15
A17: Comisiones pagadas sobre ventas | B17: 0 | C17: 0 | D17: 0 | E17: 44265.056 | F17: 0 | G17: 44265.056
A18: Agua | B18: 0 | C18: 16831.305 | D18: 16831.305 | E18: 0 | F18: 187 | G18: 187
A19: Aguinaldos | B19: 0 | C19: 70139.751 | D19: 70139.751 | E19: 0 | F19: 19635.026 | G19: 19635.026
A20: Bonificación familiar | B20: 0 | C20: 4633.926 | D20: 4633.926 | E20: 0 | F20: 5372.458 | G20: 5372.458
A21: Combustibles y lubricantes | B21: 0 | C21: 201572.012 | D21: 201572.012 | E21: 0 | F21: 302037.991 | G21: 302037.991
A22: Comisiones y gastos bancarios operacional | B22: 0 | C22: 0 | D22: 0 | E22: 0 | F22: 16005.947 | G22: 16005.947
A23: Contribuciones Sociales | B23: 0 | C23: 183371.712 | D23: 183371.712 | E23: 0 | F23: 207319.562 | G23: 207319.562
A24: Energía eléctrica | B24: 0 | C24: 30035.96 | D24: 30035.96 | E24: 0 | F24: 4392.836 | G24: 4392.836
A25: Gastos CNV y BVPASA | B25: 0 | C25: 207946.165 | D25: 207946.165 | E25: 0 | F25: 0 | G25: 0
A26: Gastos de alquiler | B26: 0 | C26: 298489.815 | D26: 298489.815 | E26: 0 | F26: 286461.716 | G26: 286461.716
A27: Gastos de escribanía | B27: 0 | C27: 158675.458 | D27: 158675.458 | E27: 0 | F27: 41455.457 | G27: 41455.457
A28: Gastos de Salud | B28: 0 | C28: 33394.718 | D28: 33394.718 | E28: 0 | F28: 0 | G28: 0
A29: Gastos generales | B29: 0 | C29: 369907.073 | D29: 369907.073 | E29: 0 | F29: 4703598.698 | G29: 4703598.698
A30: Gastos generales puka | B30: 0 | C30: 521671.435 | D30: 521671.435 | E30: 0 | F30: 0 | G30: 0
A31: Gastos generales Walterio | B31: 0 | C31: 86303.278 | D31: 86303.278 | E31: 0 | F31: 0 | G31: 0
A32: Gastos pagados en el exterior | B32: 0 | D32: 0 | E32: 0 | F32: 0 | G32: 0
A33: Gastos y artículos de limpieza | B33: 0 | C33: 5345.092 | D33: 5345.092 | E33: 0 | F33: 36.591 | G33: 36.591
A34: Honorarios fiduciarios | B34: 0 | C34: 0 | D34: 0 | E34: 0 | F34: 0 | G34: 0
A35: Honorarios profesionales y asesoramiento | B35: 0 | C35: 4087117.456 | D35: 4087117.456 | E35: 0 | F35: =2673691.159+647049.546 -> 3320740.705 | G35: 3320740.705
A36: Impuestos, patentes y tasas | B36: 0 | C36: 204521.604 | D36: 204521.604 | E36: 0 | F36: 218847.195 | G36: 218847.195
A37: Otros beneficios al personal | B37: 0 | C37: 3768.637 | D37: 3768.637 | E37: 0 | F37: 18115.165 | G37: 18115.165
A38: Reparaciones y mantenimientos | B38: 0 | C38: 707545.617 | D38: 707545.617 | E38: 0 | F38: 394373.323 | G38: 394373.323
A39: Seguridad y vigilancia | B39: 0 | C39: 463.636 | D39: 463.636 | E39: 0 | F39: 6977.508 | G39: 6977.508
A40: Seguros pagados | B40: 0 | C40: 380006.219 | D40: 380006.219 | E40: 0 | F40: 14717.089 | G40: 14717.089
A41: Sueldos y Jornales | B41: 0 | C41: 1112311.566 | D41: 1112311.566 | E41: 0 | F41: 1071643.614 | G41: 1071643.614
A42: Teléfono e internet | B42: 0 | C42: 31613.621 | D42: 31613.621 | E42: 0 | F42: 34827.479 | G42: 34827.479
A43: Útiles de oficina | B43: 0 | C43: 12864.629 | D43: 12864.629 | E43: 0 | F43: 8447.575 | G43: 8447.575
A44: Viáticos y movilidad | B44: 0 | C44: 7163.087 | D44: 7163.087 | E44: 0 | F44: 7317.217 | G44: 7317.217
A45: Gastos de Emision de Bonos | C45: 4107.873 | D45: 4107.873 | F45: 0 | G45: 0
A46: Total | B46: =-SUM($B$12:B45) -> -339990.068 | C46: =-SUM($C$12:C45) -> -8739801.645 | D46: =-SUM($D$12:D45) -> -9079791.713 | E46: =-SUM($E$12:E45) -> -181548.299 | F46: =-SUM($F$12:F45) -> -10682510.15 | G46: =-SUM($G$12:G45) -> -10864058.45

Sheet Nota 28
A1: =Indice!C1 -> GRUPO VAZQUEZ S.A.E. | E1: ER
A5: Nota 28 - Otros Ingresos y gastos operativos
A6: Miles de guaraníes
A8: Otros ingresos | B8: Setiembre 2021 | C8: Setiembre 2020 | E8: Otros gastos | F8: Setiembre 2021 | G8: Setiembre 2020
A9: Ingresos Varios | B9: 1304996.718 | C9: 1715335.022 | E9: Depreciaciones | F9: -736520.317 | G9: 0
A10: Descuentos Obtenidos | B10: 481574.951 | C10: 0 | E10: Amortizaciones | F10: -85123.472 | G10: 0
A11: Total | B11: =SUM($B$9:B10) -> 1786571.669 | C11: =SUM($C$9:C10) -> 1715335.022 | E11: Recargos y multas | F11: -49179.481 | G11: -127837.946
E12: Gastos varios no deducibles | F12: -825874.028 | G12: -163711.422
E13: Sueldos no deducibles | F13: -262542.236 | G13: -131622.652
E14: Retencion de renta gnd | F14: -8908.279 | G14: -2880.806
E15: Gastos de Administracion gnd | F15: -173537.845 | G15: -482919.5
E16: Retencion idu | F16: 0 | G16: 0
E17: Donaciones y contribuciones | F17: 0 | G17: 0
E18: Gastos de Administracion | F18: -575329.117 | G18: 0
E19: Otros gastos | F19: -363.636 | G19: 0
E20: Total | F20: =SUM($F$9:F19) -> -2717378.411 | G20: =SUM($G$9:G19) -> -908972.326

Sheet Nota 29
A1: =Indice!C1 -> GRUPO VAZQUEZ S.A.E. | E1: ER
A5: NOTA 29 - GASTOS FINANCIEROS Y CONVERSION DE MONEDA EXTRANJERA
A6: Miles de guaraníes
A8: Gastos Financieros | B8: Setiembre 2021 | C8: Setiembre 2020 | E8: Conversion de Moneda | F8: Setiembre 2021 | G8: Setiembre 2020
A9: Gastos Financieros | B9: 9233796.181 | C9: 13442543.62 | E9: Diferencia de Cambio | F9: 1102710.672 | G9: 1937345.967
A10: Gastos Financieros - Bonos | B10: 3274721.406 | C10: 0 | E10: Total gastos por Conversion | F10: =SUM($F9:F9) -> 1102710.672 | G10: =SUM($G9:G9) -> 1937345.967
A11: Comisiones y Gastos Financieros | B11: 103232.724 | C11: 938150.732
A12: Total gastos financieros | B12: =SUM($B9:B11) -> 12611750.31 | C12: =SUM($C9:C11) -> 14380694.36

Sheet Nota 30
A1: =Indice!C1 -> GRUPO VAZQUEZ S.A.E. | E1: ER
A5: Nota 34 - Resultado de inversiones en asociadas
A6: Miles de guaraníes
A9: Resultado de inversiones en asociadas | B9: Setiembre 2021 | C9: Setiembre 2020
A13: Total | B13: =SUM($B10:B12) -> 0 | C13: =SUM($C10:C12) -> 0

Sheet Nota 31
A1: =Indice!C1 -> GRUPO VAZQUEZ S.A.E. | E1: ER
A5: Nota 31 - Resultado participación minoritaria
A6: Miles de guaraníes
A9: Resultado participación minoritaria | B9: Junio 2021 | C9: Setiembre 2020
A12: Total | B12: =SUM($B10:B11) -> 0 | C12: =SUM($C10:C11) -> 0

Sheet Nota 32
A1: =Indice!C1 -> GRUPO VAZQUEZ S.A.E. | C1: ER
A5: Nota 32 - IMPUESTO A LA RENTA
A6: En miles de guaraníes
B8: Setiembre 2021 | C8: Setiembre 2020
A9: Impuesto a la renta | B9: -1935297.19 | C9: 0
A10: Total | B10: =SUM(B9:$B9) -> -1935297.19 | C10: =SUM($C9:C9) -> 0

Sheet Nota 33
A1: =Indice!C1 -> GRUPO VAZQUEZ S.A.E. | E1: ER
A5: Nota 33 - Resultado extraordinario neto de impuesto a la renta
A6: En miles de guaraníes
B8: Setiembre 2021 | C8: Setiembre 2020
A9: Conceptos
A10: Utilidades del Ejercicio | B10: 17417674.71 | C10: 7119925.093
A11: Total | B11: =SUM($B9:B10) -> 17417674.71 | C11: =SUM($C9:C10) -> 7119925.093

Sheet Nota 34
A1: =Indice!C1 -> GRUPO VAZQUEZ S.A.E. | E1: ER
A5: Nota 34 - Resultado sobre actividades discontinuadas neto de impuesto a la renta
A6: En miles de guaraníes
A8: Resultado sobre actividades discontinuadas neto de impuesto a la renta | B8: Setiembre 2021 | C8: Setiembre 2020
A12: Total | B12: =SUM($B9:B11) -> 0 | C12: =SUM($C9:C11) -> 0

Sheet Nota 35
A1: =Indice!C1 -> GRUPO VAZQUEZ S.A.E. | C1: ER
A5: NOTA 35- UTILIDAD (PÉRDIDA) NETA DEL AÑO Y POR ACCION ORDINARIA
A6: En miles de guaraníes
B8: Setiembre 2021 | C8: Setiembre 2020
A9: Cantidad de Acciones Ordinarias en Circulación | B9: 2470 | C9: 2259
A10: Utilidad Neta | B10: 17417674.71 | C10: =+ER!D31 -> 7119925.093
A11: Utilidad Neta por Acción Ordinaria | B11: =IFERROR(B10/B9,0) -> 7051.690167 | C11: =+C10/C9 -> 3151.803937

Sheet Nota 36
A1: =Indice!C1 -> GRUPO VAZQUEZ S.A.E. | E1: Indice
A5: NOTA 36 - ACTIVOS GRAVADOS
A6: En miles de guaraníes
A8: Los siguientes bienes de propiedad de la Sociedad han sido hipotecados y prendados en garantía de obligaciones financieras.
A10: Al 31 de Diciembre de 2020
A11: Tipo de Activo | B11: Datos del activo gravado | C11: Tipo de garantía | D11: Importe PYG | E11: A favor de
A12: Activos en Fideicomiso | C12: Fideicomiso | D12: 130934449.5 | E12: BANCO ITAU S.A.E.C.A.
A15: =IFERROR("Al "&DAY(Indice!B6)&" de "&VLOOKUP(MONTH(Indice!B6),Indice!S:T,2,0)&" de "&YEAR(Indice!B6-1),"Al dia... de mes… de año 2XX2…") -> Al 30 de Septiembre de 2021
A16: Tipo de Activo | B16: Datos del activo gravado | C16: Tipo de garantía | D16: Importe PYG | E16: A favor de
A17: Activos en Fideicomiso | C17: Fideicomiso | D17: 130934449.5 | E17: BANCO ITAU S.A.E.C.A.

Sheet Nota 37
A1: =Indice!C1 -> GRUPO VAZQUEZ S.A.E. | E1: Indice
A5: NOTA 37 - CONTINGENCIAS Y COMPROMISOS
A6: =IFERROR("Al "&DAY(Indice!B6)&" de "&VLOOKUP(MONTH(Indice!B6),Indice!S:T,2,0)&" de "&YEAR(Indice!B6-1)&" no existen situaciones contingentes, ni reclamos que pudieran resultar en la generación de obligaciones para la Sociedad adicionales a las que se presentan en estos estados financieros.","Al … de …………... 20X2 no existen situaciones contingentes, ni reclamos que pudieran resultar en la generación de obligaciones para la Sociedad adicionales a las que se presentan en estos estados financieros.") -> Al 30 de Septiembre de 2021 no existen situaciones contingentes, ni reclamos que pudieran resultar en la generación de obligaciones para la Sociedad adicionales a las que se presentan en estos estados financieros.

Sheet Nota 38
A1: =Indice!C1 -> GRUPO VAZQUEZ S.A.E. | D1: Índice
A4: NOTA 38 - IMPUESTO DIFERIDO
A5: En miles de guaraníes
A6: Al 30 de Setiembre 2021 la Sociedad constituyó una provisión para impuesto a la renta de Guaraníes 1.935.297 (Al 31 de diciembre 2020: Guaraníes 1.289.750).
A8: El siguiente cuadro detalla las diferencias temporales a la tasa del impuesto a los efectos de determinación del impuesto diferido:
B10: Setiembre 2021 | C10: Diciembre 2020
A11: Activos y pasivos impositivos diferidos:
A12: Caja y Bancos
A13: Inversiones
A14: Previsión para deudores incobrables
A15: Bienes de uso
A16: Activos intangibles
A17: Previsión del pasivo
A18: Deudas comerciales y bancarias
A19: Bienes de cambio
A20: Sub - total
A21: Previsión para impuestos diferidos netos
A22: Total activo/pasivo impositivo diferido neto antes de quebrantos
A23: Quebranto impositivo
A24: Total

Sheet Nota 39
A1: =Indice!C1 -> GRUPO VAZQUEZ S.A.E. | E1: Indice
A5: NOTA 39 - HECHOS POSTERIORES
A7: Con posterioridad al 30 de Setiembre de 2021, la Organización Mundial de la Salud mantiene vigente al brote de coronavirus (COVID-19) como una pandemia. La situación de emergencia sobre la salud pública se expandió prácticamente en todo el mundo y los distintos países han tomado diversas medidas para hacerle frente. Esta situación y las medidas adoptadas han afectado significativamente la actividad económica internacional con impactos diversos en los distintos países y sectores de negocio. La Dirección de la Sociedad estima que esta situación podría generar un impacto negativo sobre las operaciones de la Sociedad, pero las incertidumbres en relación con los efectos, extensión y duración de esta cuestión no permiten una estimación razonable de ese impacto a la fecha de emisión de los presentes estados financieros, lo que dependerá de la gravedad de la emergencia sanitaria y del éxito de las medidas tomadas y que se tomen en el futuro.
A8: Grupo Vázquez S.A.E., accionista controlante de Credicentro S.A.E.C.A., suscribió en fecha 9 de abril de 2020 la compra de la mayoría del paquete accionario de la entidad financiera regulada: Financiera El Comercio S.A.E.C.A. La transacción fue aprobada por el Banco Central de Paraguay en fecha 6 de septiembre de 2021, teniendo también opinión favorable de la Dirección de Investigaciones de la Comisión Nacional de Competencia.

Sheet Nota 40
A1: =Indice!C1 -> GRUPO VAZQUEZ S.A.E. | C1: Indice
A5: NOTA 40 - SALDOS Y TRANSACCIONES CON PARTES RELACIONADAS
A6: Miles de guaraníes
B8: Setiembre 2021 | C8: Diciembre 2020
A9: ACTIVO
A10: Inversiones Temporales | B10: 26572510.3 | C10: 154343509.4
A11: Inversiones en Entidades | B11: 326676492.5 | C11: 0
A12: Cuentas a cobrar comerciales | B12: 34716054.18 | C12: 1000616.468
A13: Otros créditos | B13: 2322350.763 | C13: 0
A14: Total activo | B14: =SUM(B10:B13) -> 390287407.7 | C14: 155344125.8
A15: PASIVO
A16: Cuentas por pagar comerciales | B16: 39001298.76 | C16: 23685471.23
A17: Préstamos a corto plazo | B17: 1455780.822 | C17: 6598819.886
A18: Provisiones | B18: 0 | C18: 0
A19: Préstamos a largo plazo | B19: 0 | C19: 25424947.87
A20: Otros pasivos | B20: 12840326.66 | C20: 7500
A21: Total pasivo | B21: =SUM(B16:B20) -> 53297406.24 | C21: 55716738.99
B25: =IFERROR(IF(Indice!B6="","2XX2",YEAR(Indice!B6)),"2XX2") -> 2021 | C25: =+IFERROR(YEAR(Indice!B6-365),"2XX1") -> 2020
A26: Ingresos netos
A27: Venta de servicios | B27: 1971975.08
A28: Venta de Software | B28: 12158720
A30: Gastos administrativos
A31: Honorarios por servicios | B31: 866283.45
A32: Otros | B32: 20926.75
A33: Gastos financieros
A34: Intereses pagados por préstamos | B34: 1048312.134

Sheet Base de Monedas
A1: PYG | B1: Guaraní | C1: Índice
A2: USD | B2: Dólar estadounidense
A3: EUR | B3: Euro
A4: AED | B4: Dírham de los Emiratos Árabes Unidos
A5: AFN | B5: Afgani
A6: ALL | B6: Lek
A7: AMD | B7: Dram armenio
A8: ANG | B8: Florín antillano neerlandés
A9: AOA | B9: Kwanza
A10: ARS | B10: Peso argentino
A11: AUD | B11: Dólar australiano
A12: AWG | B12: Florín arubeño
A13: AZN | B13: Manat azerbaiyano
A14: BAM | B14: Marco convertible
A15: BBD | B15: Dólar de Barbados
A16: BDT | B16: Taka
A17: BGN | B17: Lev búlgaro
A18: BHD | B18: Dinar bareiní
A19: BIF | B19: Franco de Burundi
A20: BMD | B20: Dólar bermudeño
A21: BND | B21: Dólar de Brunéi
A22: BOB | B22: Boliviano
A23: BOV | B23: MVDOL
A24: BRL | B24: Real brasileño
A25: BSD | B25: Dólar bahameño
A26: BTN | B26: Ngultrum
A27: BWP | B27: Pula
A28: BYN | B28: Rublo bielorruso
A29: BZD | B29: Dólar beliceño
A30: CAD | B30: Dólar canadiense
A31: CDF | B31: Franco congoleño
A32: CHE | B32: Euro WIR
A33: CHF | B33: Franco suizo
A34: CHW | B34: Franco WIR
A35: CLF | B35: Unidad de fomento
A36: CLP | B36: Peso chileno
A37: CNY | B37: Yuan chino
A38: COP | B38: Peso colombiano
A39: COU | B39: Unidad de valor real
A40: CRC | B40: Colón costarricense
A41: CUC | B41: Peso convertible
A42: CUP | B42: Peso cubano
A43: CVE | B43: Escudo caboverdiano
A44: CZK | B44: Corona checa
A45: DJF | B45: Franco yibutiano
A46: DKK | B46: Corona danesa
A47: DOP | B47: Peso dominicano
A48: DZD | B48: Dinar argelino
A49: EGP | B49: Libra egipcia
A50: ERN | B50: Nakfa
A51: ETB | B51: Birr etíope
A52: FJD | B52: Dólar fiyiano
A53: FKP | B53: Libra malvinense
A54: GBP | B54: Libra esterlina
A55: GEL | B55: Lari
A56: GHS | B56: Cedi ghanés
A57: GIP | B57: Libra de Gibraltar
A58: GMD | B58: Dalasi
A59: GNF | B59: Franco guineano
A60: GTQ | B60: Quetzal
A61: GYD | B61: Dólar guyanés
A62: HKD | B62: Dólar de Hong Kong
A63: HNL | B63: Lempira
A64: HRK | B64: Kuna
A65: HTG | B65: Gourde
A66: HUF | B66: Forinto
A67: IDR | B67: Rupia indonesia
A68: ILS | B68: Nuevo shéquel israelí
A69: INR | B69: Rupia india
A70: IQD | B70: Dinar iraquí
A71: IRR | B71: Rial iraní
A72: ISK | B72: Corona islandesa
A73: JMD | B73: Dólar jamaiquino
A74: JOD | B74: Dinar jordano
A75: JPY | B75: Yen
A76: KES | B76: Chelín keniano
A77: KGS | B77: Som
A78: KHR | B78: Riel
A79: KMF | B79: Franco comorense
A80: KPW | B80: Won norcoreano
A81: KRW | B81: Won
A82: KWD | B82: Dinar kuwaití
A83: KYD | B83: Dólar de las Islas Caimán
A84: KZT | B84: Tenge
A85: LAK | B85: Kip
A86: LBP | B86: Libra libanesa
A87: LKR | B87: Rupia de Sri Lanka
A88: LRD | B88: Dólar liberiano
A89: LSL | B89: Loti
A90: LYD | B90: Dinar libio
A91: MAD | B91: Dírham marroquí
A92: MDL | B92: Leu moldavo
A93: MGA | B93: Ariary malgache
A94: MKD | B94: Denar
A95: MMK | B95: Kyat
A96: MNT | B96: Tugrik
A97: MOP | B97: Pataca
A98: MRU | B98: Uguiya
A99: MUR | B99: Rupia de Mauricio
A100: MVR | B100: Rufiyaa
A101: MWK | B101: Kwacha
A102: MXN | B102: Peso mexicano
A103: MXV | B103: Unidad de Inversión (UDI) mexicana
A104: MYR | B104: Ringgit malayo
A105: MZN | B105: Metical mozambiqueño
A106: NAD | B106: Dólar namibio
A107: NGN | B107: Naira
A108: NIO | B108: Córdoba
A109: NOK | B109: Corona noruega
A110: NPR | B110: Rupia nepalí
A111: NZD | B111: Dólar neozelandés
A112: OMR | B112: Rial omaní
A113: PAB | B113: Balboa
A114: PEN | B114: Sol
A115: PGK | B115: Kina
A116: PHP | B116: Peso filipino
A117: PKR | B117: Rupia pakistaní
A118: PLN | B118: Złoty
A119: QAR | B119: Riyal qatarí
A120: RON | B120: Leu rumano
A121: RSD | B121: Dinar serbio
A122: RUB | B122: Rublo ruso
A123: RWF | B123: Franco ruandés
A124: SAR | B124: Riyal saudí
A125: SBD | B125: Dólar de las Islas Salomón
A126: SCR | B126: Rupia seychelense
A127: SDG | B127: Dinar sudanés
A128: SEK | B128: Corona sueca
A129: SGD | B129: Dólar de Singapur
A130: SHP | B130: Libra de Santa Elena
A131: SLL | B131: Leone
A132: SOS | B132: Chelín somalí
A133: SRD | B133: Dólar surinamés
A134: SSP | B134: Libra sursudanesa
A135: STN | B135: Dobra
A136: SVC | B136: Colon Salvadoreño
A137: SYP | B137: Libra siria
A138: SZL | B138: Lilangeni
A139: THB | B139: Baht
A140: TJS | B140: Somoni tayiko
A141: TMT | B141: Manat turcomano
A142: TND | B142: Dinar tunecino
A143: TOP | B143: Paʻanga
A144: TRY | B144: Lira turca
A145: TTD | B145: Dólar de Trinidad y Tobago
A146: TWD | B146: Nuevo dólar taiwanés
A147: TZS | B147: Chelín tanzano
A148: UAH | B148: Grivna
A149: UGX | B149: Chelín ugandés
A150: USN | B150: Dólar estadounidense (Siguiente día)
A151: UYI | B151: Peso en Unidades Indexadas (Uruguay)
A152: UYU | B152: Peso uruguayo
A153: UYW | B153: Unidad Previsional
A154: UZS | B154: Som uzbeko
A155: VES7​ | B155: Bolívar soberano
A156: VND | B156: Dong vietnamita
A157: VUV | B157: Vatu
A158: WST | B158: Tala
A159: XAF | B159: Franco CFA de África Central
A160: XAG | B160: Plata (una onza troy)
A161: XAU | B161: Oro (una onza troy)
A162: XBA | B162: Unidad compuesta europea (EURCO) (Unidad del mercados de bonos)
A163: XBB | B163: Unidad Monetaria europea (E.M.U.-6) (Unidad del mercado de bonos)
A164: XBC | B164: Unidad europea de cuenta 9 (E.U.A.-9) (Unidad del mercado de bonos)
A165: XBD | B165: Unidad europea de cuenta 17 (E.U.A.-17) (Unidad del mercado de bonos)
A166: XCD | B166: Dólar del Caribe Oriental
A167: XDR | B167: Derechos especiales de giro
A168: XOF | B168: Franco CFA de África Occidental
A169: XPD | B169: Paladio (una onza troy)
A170: XPF | B170: Franco CFP
A171: XPT | B171: Platino (una onza troy)
A172: XSU | B172: SUCRE
A173: XTS | B173: Reservado para pruebas
A174: XUA | B174: Unidad de cuenta BAD
A175: XXX | B175: Sin divisa
A176: YER | B176: Rial yemení
A177: ZAR | B177: Rand
A178: ZMW | B178: Kwacha zambiano
A179: ZWL | B179: Dólar zimbabuense
